Workbook

Sheet EUR 6M
A1: Tenor | B1: Stamp | C1: Start Date | D1: Maturity | E1: t(ACT/360) | F1: MEt.Values | G1: NSS | H1: DFNSS | I1: Zero Cpn | J1: Forward Rate | U1: Squared Residuals | V1: Days(t) | W1: (t/365) | X1: NSS Parameters
A2: O/N | B2: 2013-08-02 | C2: 2013-08-02 | D2: 2013-08-05 | E2: =(D2-C2)/365 -> 0.008219178082 | F2: 0.0436 | G2: =($Y$2)+($Y$3)*(((1-EXP(-E2/$Y$6))/(E2/$Y$6)))+($Y$4)*((((1-EXP(-E2/$Y$6))/(E2/$Y$6))-(EXP(-E2/$Y$6))))+($Y$5)*((((1-EXP(-E2/$Y$7))/(E2/$Y$7))-(EXP(-E2/$Y$7)))) -> 0.1278981973 | H2: =EXP(-G2/100*E2) -> 0.9999894879 | I2: =-100*LN(H2)/((D2-C2)/365) -> 0.1278981973 | J2: =I2 -> 0.1278981973 | U2: =IF(F2>0,POWER(F2-G2,2),"") -> 0.007106186073 | V2: 3 | W2: 0.008219178082 | X2: β0 | Y2: 3.014000602
A3: T/N | B3: 2013-08-02 | C3: 2013-08-05 | D3: 2013-08-06 | E3: =(D3-C3)/365 -> 0.002739726027 | F3: 0.0436 | G3: =($Y$2)+($Y$3)*(((1-EXP(-E3/$Y$6))/(E3/$Y$6)))+($Y$4)*((((1-EXP(-E3/$Y$6))/(E3/$Y$6))-(EXP(-E3/$Y$6))))+($Y$5)*((((1-EXP(-E3/$Y$7))/(E3/$Y$7))-(EXP(-E3/$Y$7)))) -> 0.1270549988 | H3: =$H$2*EXP(-G3/100*E3) -> 0.999986007 | I3: =-100*LN(H3)/((D3-C3)/365) -> 0.5107495908 | J3: =36500*(LN(H2)-LN(H3))/((D3-D2)) -> 0.1270549988 | U3: =IF(F3>0,POWER(F3-G3,2),"") -> 0.006964736822 | V3: 4 | W3: 0.01095890411 | X3: β1 | Y3: -2.887365853
A4: 1 WeeE | B4: 2013-08-02 | C4: 2013-08-06 | D4: 2013-08-13 | E4: =(D4-$C$4)/365 -> 0.01917808219 | F4: 0.105 | G4: 0.129595331 | H4: =$H$2*EXP(-G4/100*E4) -> 0.9999646345 | I4: =-100*LN(H4)/((D4-C4)/365) -> 0.1844088441 | J4: =36500*(LN(H3)-LN(H4))/((D4-D3)) -> 0.1114446168 | U4: 0.0006049303048 | V4: 7 | W4: 0.0301369863 | X4: β2 | Y4: -1.217277024
A5: 1 Month | B5: 2013-08-02 | C5: 2013-08-06 | D5: 2013-09-06 | E5: =(D5-$C$4)/365 -> 0.08493150685 | F5: 0.129 | G5: 0.1400717613 | H5: 0.9998705311 | I5: 0.1524490062 | J5: 0.1431273868 | U5: 0.0001225838976 | V5: 31 | W5: 0.09589041096 | X5: β3 | Y5: -1.032563617
A6: 2 Months | B6: 2013-08-02 | C6: 2013-08-06 | D6: 2013-10-07 | E6: 0.1698630137 | F6: 0.18 | G6: 0.1543147773 | H6: 0.9997274012 | I6: 0.1605033997 | J6: 0.1685577933 | U6: 0.0006597306661 | V6: 62 | W6: 0.1808219178 | X6: τ1 | Y6: 2.099139872
A7: 3 Months | B7: 2013-08-02 | C7: 2013-08-06 | D7: 2013-11-06 | E7: 0.2520547945 | F7: 0.228 | G7: 0.1688106987 | H7: 0.9995640874 | I7: 0.1729812921 | J7: 0.1987689364 | U7: 0.003503373383 | V7: 92 | W7: 0.2630136986 | X7: τ2 | Y7: 2.110921451
A8: 6 Months | B8: 2013-08-02 | C8: 2013-08-06 | D8: 2014-02-06 | E8: 0.504109589 | F8: 0.341 | G8: 0.2171135627 | H8: 0.9988956078 | I8: 0.2191988594 | J8: 0.2654164266 | U8: 0.01534784936 | V8: 184 | W8: 0.5150684932 | Y8: =U68 -> 0.107438131
A9: 1 Year | B9: 2013-08-02 | C9: 2013-08-06 | D9: 2014-08-06 | E9: 1 | F9: 0.423 | G9: 0.3251368308 | H9: 0.9967434337 | I9: 0.3261880488 | J9: 0.4349505398 | U9: 0.009577199894 | V9: 365 | W9: 1.010958904
C10: 2013-08-06 | D10: =AddMonths(D9,6) -> 2015-02-06 | E10: 1.504109589 | G10: 0.4460142639 | H10: 0.9933034669 | I10: 0.4467131611 | J10: 0.6857983024
A11: 2 Years | B11: 2013-08-02 | C11: 2013-08-06 | D11: 2015-08-06 | E11: 2 | F11: 0.57 | G11: 0.5699503429 | H11: 0.9886553227 | I11: 0.570475952 | J11: 0.9458669584 | U11: 2.465823286e-09 | V11: 730 | W11: 2.010958904
C12: 2013-08-06 | D12: =AddMonths(D11,6) -> 2016-02-08 | E12: 2.509589041 | G12: 0.6981676969 | H12: 0.9826211331 | I12: 0.6985865775 | J12: 1.201386344
A13: 3 Years | B13: 2013-08-02 | C13: 2013-08-06 | D13: 2016-08-08 | E13: 3.008219178 | F13: 0.751 | G13: 0.821523921 | H13: 0.9755793763 | I13: 0.8218733697 | J13: 1.44237173 | U13: 0.004973623437 | V13: 1098 | W13: 3.019178082
C14: 2013-08-06 | D14: =AddMonths(D13,6) -> 2017-02-08 | E14: 3.512328767 | G14: 0.9421192078 | H14: 0.9674410017 | I14: 0.9424185015 | J14: 1.661758473
A15: 4 Years | B15: 2013-08-02 | C15: 2013-08-06 | D15: 2017-08-07 | E15: 4.005479452 | F15: 0.978 | G15: 1.054856221 | H15: 0.9586180515 | I15: 1.055118666 | J15: 1.857794283 | U15: 0.005906878727 | V15: 1462 | W15: 4.016438356
C16: 2013-08-06 | D16: =AddMonths(D15,6) -> 2018-02-07 | E16: 4.509589041 | G16: 1.164001522 | H16: 0.9488522362 | I16: 1.164234629 | J16: 2.03123212
A17: 5 Years | B17: 2013-08-02 | C17: 2013-08-06 | D17: 2018-08-06 | E17: 5.002739726 | F17: 1.205 | G17: 1.264451504 | H17: 0.9386921241 | I17: 1.264661632 | J17: 2.183010779 | U17: 0.00353448129 | V17: 1826 | W17: 5.01369863
C18: 2013-08-06 | D18: =AddMonths(D17,6) -> 2019-02-06 | E18: 5.506849315 | G18: 1.360568797 | H18: 0.9278038049 | I18: 1.36075969 | J18: 2.314428457
A19: 6 Years | B19: 2013-08-02 | C19: 2013-08-06 | D19: 2019-08-06 | E19: 6.002739726 | F19: 1.405 | G19: 1.448726274 | H19: 0.9167011315 | I19: 1.448901397 | J19: 2.427712621 | U19: 0.001911987031 | V19: 2191 | W19: 6.01369863
C20: 2013-08-06 | D20: =AddMonths(D19,6) -> 2020-02-06 | E20: 6.506849315 | G20: 1.532057455 | H20: 0.9051096502 | I20: 1.532219011 | J20: 2.524332552
A21: 7 Years | B21: 2013-08-02 | C21: 2013-08-06 | D21: 2020-08-06 | E21: 7.005479452 | F21: 1.581 | G21: 1.608535948 | H21: 0.8934220695 | I21: 1.608686005 | J21: 2.60653826 | U21: 0.0007582284339 | V21: 2557 | W21: 7.016438356
C22: 2013-08-06 | D22: =AddMonths(D21,6) -> 2021-02-08 | E22: 7.515068493 | G22: 1.680934073 | H22: 0.8813205608 | I22: 1.681073955 | J22: 2.676213676
A23: 8 Years | B23: 2013-08-02 | C23: 2013-08-06 | D23: 2021-08-06 | E23: 8.005479452 | F23: 1.783 | G23: 1.745462785 | H23: 0.8695815354 | I23: 1.745594098 | J23: 2.734302211 | U23: 0.001409042491 | V23: 2922 | W23: 8.016438356
C24: 2013-08-06 | D24: =AddMonths(D23,6) -> 2022-02-07 | E24: 8.512328767 | G24: 1.807226708 | H24: 0.8574026868 | I24: 1.807350201 | J24: 2.782762826
A25: 9 Years | B25: 2013-08-02 | C25: 2013-08-06 | D25: 2022-08-08 | E25: 9.010958904 | F25: 1.881 | G25: 1.863466143 | H25: 0.8454158179 | I25: 1.863582803 | J25: 2.823553646 | U25: 0.0003074361358 | V25: 3289 | W25: 9.021917808
C26: 2013-08-06 | D26: =AddMonths(D25,6) -> 2023-02-08 | E26: 9.515068493 | G26: 1.916122446 | H26: 0.833325568 | I26: 1.916232925 | J26: 2.85735385
A27: 10 Years | B27: 2013-08-02 | C27: 2013-08-06 | D27: 2023-08-07 | E27: 10.00821918 | F27: 2.009 | G27: 1.963876047 | H27: 0.8215524217 | I27: 1.963981082 | J27: 2.885255251 | U27: 0.002036171167 | V27: 3653 | W27: 10.01917808
C28: 2013-08-06 | D28: =AddMonths(D27,6) -> 2024-02-07 | E28: 10.51232877 | G28: 2.009167088 | H28: 0.8095953193 | I28: 2.009267086 | J28: 2.908341941
A29: 11 Years | B29: 2013-08-02 | C29: 2013-08-06 | D29: 2024-08-06 | E29: 11.00821918 | G29: 2.05053437 | H29: 0.7979272669 | I29: 2.050629864 | J29: 2.927475049 | V29: 4018 | W29: 11.01917808
C30: 2013-08-06 | D30: =AddMonths(D29,6) -> 2025-02-06 | E30: 11.51232877 | G30: 2.089624488 | H30: 0.7861757169 | I30: 2.0897158 | J30: 2.943233683
A31: 12 Years | B31: 2013-08-02 | C31: 2013-08-06 | D31: 2025-08-06 | E31: 12.00821918 | F31: 2.213 | G31: 2.125410629 | H31: 0.7747348177 | I31: 2.125498171 | J31: 2.956202705 | U31: 0.007671897918 | V31: 4383 | W31: 12.01917808
C32: 2013-08-06 | D32: =AddMonths(D31,6) -> 2026-02-06 | E32: 12.51232877 | G32: 2.159311253 | H32: 0.7632339812 | I32: 2.159395268 | J32: 2.966846227
A33: 13 Years | B33: 2013-08-02 | C33: 2013-08-06 | D33: 2026-08-06 | E33: 13.00821918 | G33: 2.190428375 | H33: 0.7520546866 | I33: 2.190509186 | J33: 2.97557696 | V33: 4748 | W33: 13.01917808
C34: 2013-08-06 | D34: =AddMonths(D33,6) -> 2027-02-08 | E34: 13.51780822 | G34: 2.220297176 | H34: 0.7407100497 | I34: 2.220374941 | J34: 2.982754526
A35: 14 Years | B35: 2013-08-02 | C35: 2013-08-06 | D35: 2027-08-06 | E35: 14.00821918 | G35: 2.247194308 | H35: 0.729933083 | I35: 2.247269351 | J35: 2.988593479 | V35: 5113 | W35: 14.01917808
C36: 2013-08-06 | D36: =AddMonths(D35,6) -> 2028-02-07 | E36: 14.51506849 | G36: 2.273248968 | H36: 0.7189423128 | I36: 2.273321391 | J36: 2.993343446
A37: 15 Years | B37: 2013-08-02 | C37: 2013-08-06 | D37: 2028-08-07 | E37: 15.01369863 | F37: 2.411 | G37: 2.297294311 | H37: 0.708277469 | I37: 2.297364328 | J37: 2.997251598 | U37: 0.01292898367 | V37: 5480 | W37: 15.02465753
C38: 2013-08-06 | D38: =AddMonths(D37,6) -> 2029-02-07 | E38: 15.51780822 | G38: 2.320136045 | H38: 0.6976450889 | I38: 2.320203788 | J38: 3.00042248
A39: 16 Years | B39: 2013-08-02 | C39: 2013-08-06 | D39: 2029-08-06 | E39: 16.0109589 | G39: 2.341168515 | H39: 0.6873896021 | I39: 2.341234172 | J39: 3.002990237 | V39: 5844 | W39: 16.02191781
C40: =C39 -> 2013-08-06 | D40: =AddMonths(D39,6) -> 2030-02-06 | E40: 16.51506849 | G40: 2.361433819 | H40: 0.6770548942 | I40: 2.361497472 | J40: 3.005077498
A41: 17 Years | B41: 2013-08-02 | C41: =C40 -> 2013-08-06 | D41: 2030-08-06 | E41: 17.0109589 | G41: 2.380246435 | H41: 0.6670346703 | I41: 2.380308231 | J41: 3.006779273 | V41: 6209 | W41: 17.02191781
C42: 2013-08-06 | D42: =AddMonths(D41,6) -> 2031-02-06 | E42: 17.51506849 | G42: 2.398318706 | H42: 0.6569957849 | I42: 2.398378724 | J42: 3.00815964
A43: 18 Years | B43: 2013-08-02 | C43: 2013-08-06 | D43: 2031-08-06 | E43: 18.0109589 | G43: 2.415140114 | H43: 0.6472644046 | I43: 2.415198479 | J43: 3.009279685 | V43: 6574 | W43: 18.02191781
C44: 2013-08-06 | D44: =AddMonths(D43,6) -> 2032-02-06 | E44: 18.51506849 | G44: 2.431341443 | H44: 0.6375165473 | I44: 2.43139822 | J44: 3.010186762
A45: 19 Years | B45: 2013-08-02 | C45: 2013-08-06 | D45: 2032-08-06 | E45: 19.01369863 | G45: 2.446540856 | H45: 0.6280167648 | I45: 2.446596143 | J45: 3.010923429 | V45: 6940 | W45: 19.02465753
C46: 2013-08-06 | D46: =AddMonths(D45,6) -> 2033-02-07 | E46: 19.52054795 | G46: 2.461210499 | H46: 0.618503587 | I46: 2.461264351 | J46: 3.011520359
A47: 20 Years | B47: 2013-08-02 | C47: 2013-08-06 | D47: 2033-08-08 | E47: 20.01917808 | F47: 2.519 | G47: 2.474929425 | H47: 0.6092838419 | I47: 2.474981936 | J47: 3.01200279 | U47: 0.001942215543 | V47: 7307 | W47: 20.03013699
C48: 2013-08-06 | D48: =AddMonths(D47,6) -> 2034-02-08 | E48: 20.52328767 | G48: 2.488130993 | H48: 0.6001013067 | I48: 2.488182214 | J48: 3.012391068
A49: 21 Years | B49: 2013-08-02 | C49: 2013-08-06 | D49: 2034-08-07 | E49: 21.01643836 | G49: 2.500440077 | H49: 0.5912514069 | I49: 2.500490096 | J49: 3.012703128 | V49: 7671 | W49: 21.02739726
C50: 2013-08-06 | D50: =AddMonths(D49,6) -> 2035-02-07 | E50: 21.52054795 | G50: 2.512445518 | H50: 0.5823389837 | I50: 2.512494366 | J50: 3.01295498
A51: 22 Years | B51: 2013-08-02 | C51: 2013-08-06 | D51: 2035-08-06 | E51: 22.01369863 | G51: 2.523662485 | H51: 0.5737497427 | I51: 2.523710238 | J51: 3.013158453 | V51: 8035 | W51: 22.02465753
C52: 2013-08-06 | D52: =AddMonths(D51,6) -> 2036-02-06 | E52: 22.51780822 | G52: 2.534624578 | H52: 0.5651000896 | I52: 2.534671262 | J52: 3.013322496
A53: 23 Years | B53: 2013-08-02 | C53: 2013-08-06 | D53: 2036-08-06 | E53: 23.01643836 | G53: 2.544998014 | H53: 0.5566723731 | I53: 2.545043686 | J53: 3.013455524 | V53: 8401 | W53: 23.02739726
C54: 2013-08-06 | D54: =AddMonths(D53,6) -> 2037-02-06 | E54: 23.52054795 | G54: 2.555040632 | H54: 0.548279509 | I54: 2.555085326 | J54: 3.013562588
A55: 24 Years | B55: 2013-08-02 | C55: 2013-08-06 | D55: 2037-08-06 | E55: 24.01643836 | G55: 2.56450995 | H55: 0.5401467249 | I55: 2.564553721 | J55: 3.01364858 | V55: 8766 | W55: 24.02739726
C56: 2013-08-06 | D56: =AddMonths(D55,6) -> 2038-02-08 | E56: 24.5260274 | G56: 2.573843363 | H56: 0.5319147533 | I56: 2.573886224 | J56: 3.013718081
A57: 25 Years | B57: 2013-08-02 | C57: 2013-08-06 | D57: 2038-08-06 | E57: 25.01643836 | F57: 2.531 | G57: 2.582467559 | H57: 0.5241109307 | I57: 2.58250958 | J57: 3.013773725 | U57: 0.002648909644 | V57: 9131 | W57: 25.02739726
C58: 2013-08-06 | D58: =AddMonths(D57,6) -> 2039-02-07 | E58: 25.52328767 | G58: 2.591033455 | H58: 0.5161657033 | I58: 2.591074642 | J58: 3.013818309
A59: 26 Years | B59: 2013-08-02 | C59: 2013-08-06 | D59: 2039-08-08 | E59: 26.02191781 | G59: 2.599135522 | H59: 0.5084667666 | I59: 2.599175919 | J59: 3.013854471 | V59: 9498 | W59: 26.03287671
C60: 2013-08-06 | D60: =AddMonths(D59,6) -> 2040-02-08 | E60: 26.5260274 | G60: 2.607017531 | H60: 0.5007998811 | I60: 2.60705716 | J60: 3.013883413
A61: 27 Years | B61: 2013-08-02 | C61: 2013-08-06 | D61: 2040-08-06 | E61: 27.01917808 | G61: 2.614444018 | H61: 0.4934114852 | I61: 2.614482925 | J61: 3.013906549 | V61: 9862 | W61: 27.03013699
C62: 2013-08-06 | D62: =AddMonths(D61,6) -> 2041-02-06 | E62: 27.52328767 | G62: 2.621760814 | H62: 0.4859715077 | I62: 2.621799007 | J62: 3.013925126
A63: 28 Years | B63: 2013-08-02 | C63: 2013-08-06 | D63: 2041-08-06 | E63: 28.01917808 | G63: 2.628701701 | H63: 0.4787622636 | I63: 2.628739218 | J63: 3.013940097 | V63: 10227 | W63: 28.03013699
C64: 2013-08-06 | D64: =AddMonths(D63,6) -> 2042-02-06 | E64: 28.52328767 | G64: 2.635510468 | H64: 0.4715431124 | I64: 2.635547322 | J64: 3.013952104
A65: 29 Years | B65: 2013-08-02 | C65: 2013-08-06 | D65: 2042-08-06 | E65: 29.01917808 | G65: 2.641977583 | H65: 0.4645478594 | I65: 2.642013807 | J65: 3.013961744 | V65: 10592 | W65: 29.03013699
C66: 2013-08-06 | D66: =AddMonths(D65,6) -> 2043-02-06 | E66: 29.52328767 | G66: 2.648329337 | H66: 0.457543004 | I66: 2.648364944 | J66: 3.013969472
A67: 30 Years | B67: 2013-08-02 | C67: 2013-08-06 | D67: 2043-08-06 | E67: 30.01917808 | F67: 2.522 | G67: =($Y$2)+($Y$3)*(((1-EXP(-E67/$Y$6))/(E67/$Y$6)))+($Y$4)*((((1-EXP(-E67/$Y$6))/(E67/$Y$6))-(EXP(-E67/$Y$6))))+($Y$5)*((((1-EXP(-E67/$Y$7))/(E67/$Y$7))-(EXP(-E67/$Y$7)))) -> 2.654369493 | H67: 0.4507554089 | I67: 2.654404511 | J67: 3.013975672 | U67: =IF(F67>0,POWER(F67-G67,2),"") -> 0.01752168264 | V67: 10957 | W67: 30.03013699
U68: =SUM(U2:U67) -> 0.107438131

Sheet EUR 3M
A1: Instrument | B1: Tenor | C1: Start Date | D1: Maturity | E1: Mkt.Values | F1: NSS | G1: DFNSS | H1: Zero Cpn | I1: Forward Rate | V1: Squared Residuals | W1: Days | X1: t(ACT/360) | Y1: t(ACT/365) | Z1: NSS Parameters
A2: M. Mkt. | B2: O/N | C2: 2013-08-02 | D2: 2013-08-05 | E2: 0.0436 | F2: =($AA$2)+($AA$3)*(((1-EXP(-X2/$AA$6))/(X2/$AA$6)))+($AA$4)*((((1-EXP(-X2/$AA$6))/(X2/$AA$6))-(EXP(-X2/$AA$6))))+($AA$5)*((((1-EXP(-X2/$AA$7))/(X2/$AA$7))-(EXP(-X2/$AA$7)))) -> 0.09830721634 | G2: =EXP(-F2/100*X2) -> 0.9999918078 | H2: =-100*LN(G2)/((D2-C2)/365) -> 0.09967259435 | I2: =H2 -> 0.09967259435 | V2: =IF(E2>0,POWER(E2-F2,2),"") -> 0.00299287952 | W2: =D2-C2 -> 3 | X2: =W2/360 -> 0.008333333333 | Y2: 0.008219178082 | Z2: β0 | AA2: -141.6014787
A3: M. Mkt. | B3: T/N | C3: 2013-08-05 | D3: 2013-08-06 | E3: 0.0436 | F3: =($AA$2)+($AA$3)*(((1-EXP(-X3/$AA$6))/(X3/$AA$6)))+($AA$4)*((((1-EXP(-X3/$AA$6))/(X3/$AA$6))-(EXP(-X3/$AA$6))))+($AA$5)*((((1-EXP(-X3/$AA$7))/(X3/$AA$7))-(EXP(-X3/$AA$7)))) -> 0.09704168999 | G3: =$G$2*EXP(-F3/100*X3) -> 0.9999891122 | H3: =-100*LN(G3)/((D3-C3)/365) -> 0.3974072743 | I3: =36500*(LN(G2)-LN(G3))/(D3-D2) -> 0.09838949124 | V3: =IF(E3>0,POWER(E3-F3,2),"") -> 0.002856014229 | W3: =D3-C3 -> 1 | X3: =W3/360 -> 0.002777777778 | Y3: 0.01095890411 | Z3: β1 | AA3: 141.6978875
A4: M. Mkt. | B4: 1W | C4: 2013-08-06 | D4: 2013-08-13 | E4: 0.105 | F4: 0.1008371795 | G4: =$G$2*EXP(-F4/100*X4) -> 0.9999722009 | H4: =-100*LN(G4)/((D4-$C$4)/365) -> 0.1449545221 | I4: =36500*(LN(G3)-LN(G4))/(D4-D3) -> 0.08818205431 | V4: 1.732907427e-05 | W4: 7 | X4: 0.01944444444 | Y4: 0.0301369863 | Z4: β2 | AA4: 210.7432063
A5: M. Mkt. | B5: 1M | C5: 2013-08-06 | D5: 2013-09-06 | E5: 0.129 | F5: 0.1159866292 | G5: 0.9998919362 | H5: =-100*LN(G5)/((D5-$C$4)/365) -> 0.1272432896 | I5: 0.1220775134 | V5: 0.0001693478194 | W5: 31 | X5: 0.08611111111 | Y5: 0.09589041096 | Z5: β3 | AA5: -206.3514203
A6: M. Mkt. | B6: 2M | C6: 2013-08-06 | D6: 2013-10-07 | E6: 0.18 | F6: 0.1354777772 | G6: 0.9997585141 | H6: =-100*LN(G6)/((D6-$C$4)/365) -> 0.1421822805 | I6: 0.1571212714 | V6: 0.001982228321 | W6: 62 | X6: 0.1722222222 | Y6: 0.1808219178 | Z6: τ1 | AA6: 87.9525282
A7: M. Mkt. | B7: 3M | C7: 2013-08-06 | D7: 2013-11-06 | E7: 0.228 | F7: 0.1542577498 | G7: 0.9995976744 | H7: 0.1596504119 | I7: 0.1957512167 | V7: 0.005437919461 | W7: 92 | X7: 0.2555555556 | Y7: 0.2630136986 | Z7: τ2 | AA7: 626.6159434
A8: Fra | B8: 3X6 | C8: 2013-08-06 | D8: 2014-02-06 | E8: 0.27 | F8: 0.2113452009 | G8: 0.998912191 | H8: 0.2159056476 | I8: 0.2721608833 | V8: 0.003440385453 | W8: 184 | X8: 0.5111111111 | Y8: 0.5150684932 | AA8: =V127 -> 0.09192931587
A9: Fra | B9: 6X9 | C9: 2013-08-06 | D9: 2014-05-06 | E9: 0.335 | F9: 0.2658492517 | G9: 0.9979778316 | H9: 0.2706369056 | I9: 0.3837891694 | V9: 0.004781825996 | W9: 273 | X9: 0.7583333333 | Y9: 0.7589041096
A10: Swap | B10: 1Y | C10: 2013-08-06 | D10: 2014-08-06 | E10: 0.314 | F10: 0.3214472252 | G10: 0.9967380219 | H10: 0.3267309968 | I10: 0.493184115 | V10: 5.546116257e-05 | W10: 365 | X10: 1.013888889 | Y10: 1.010958904
C11: 2013-08-06 | D11: =AddMonths(D10,3) -> 2014-11-06 | F11: 0.3762925175 | G11: 0.9952264132 | H11: 0.3821731083 | I11: 0.6021336598 | W11: 457 | X11: =W11/360 -> 1.269444444
C12: 2013-08-06 | D12: =AddMonths(D11,3) -> 2015-02-06 | F12: 0.4303880822 | G12: 0.9934499353 | H12: 0.4369103534 | I12: 0.7088116685 | W12: 549 | X12: 1.525
C13: 2013-08-06 | D13: 2015-05-06 | F13: 0.482008977 | G13: 0.9914859888 | H13: 0.4891722261 | I13: 0.8115516429 | W13: 638 | X13: 1.772222222
A14: Swap | B14: 2Y | C14: 2013-08-06 | D14: 2015-08-06 | E14: 0.443 | F14: 0.5346381172 | G14: 0.989209178 | H14: 0.54247326 | I14: 0.9121043431 | V14: 0.008397544523 | W14: 730 | X14: 2.027777778 | Y14: 2.010958904
C15: 2013-08-06 | D15: 2015-11-06 | F15: 0.5865262359 | G15: 0.9866888462 | H15: 0.5950362023 | I15: 1.012111722 | W15: 822 | X15: 2.283333333
C16: 2013-08-06 | D16: 2016-02-08 | F16: 0.6387800291 | G16: 0.9838699107 | H16: 0.6479784126 | I16: 1.110941146 | W16: 916 | X16: 2.544444444
C17: 2013-08-06 | D17: 2016-05-09 | F17: 0.6886350166 | G17: 0.9809136517 | H17: 0.698496331 | I17: 1.207006367 | W17: 1007 | X17: 2.797222222
A18: Swap | B18: 3Y | C18: 2013-08-06 | D18: 2016-08-08 | E18: 0.621 | F18: 0.7377735613 | G18: 0.9777411802 | H18: 0.7482927458 | I18: 1.299336589 | V18: 0.01363606462 | W18: 1098 | X18: 3.05 | Y18: 3.019178082
C19: 2013-08-06 | D19: 2016-11-08 | F19: 0.7867266435 | G19: 0.9743215674 | H19: 0.7979046779 | I19: 1.390012302 | W19: 1190 | X19: 3.305555556
C20: 2013-08-06 | D20: 2017-02-08 | F20: 0.8349531806 | G20: 0.9706961323 | H20: 0.8467829957 | I20: 1.479013411 | W20: 1282 | X20: 3.561111111
C21: 2013-08-06 | D21: 2017-05-08 | F21: 0.8809184173 | G21: 0.9670002722 | H21: 0.8933714973 | I21: 1.564455306 | W21: 1371 | X21: 3.808333333
A22: Swap | B22: 4Y | C22: 2013-08-06 | D22: 2017-08-07 | E22: 0.848 | F22: 0.9272190234 | G22: 0.9630368645 | H22: 0.9403015919 | I22: 1.647347303 | V22: 0.006275653663 | W22: 1462 | X22: 4.061111111 | Y22: 4.016438356
C23: 2013-08-06 | D23: 2017-11-07 | F23: 0.9733142419 | G23: 0.9588478 | H23: 0.9870249134 | I23: 1.729519435 | W23: 1554 | X23: 4.316666667
C24: 2013-08-06 | D24: 2018-02-07 | F24: 1.0186942 | G24: 0.9544832782 | H24: 1.033024394 | I24: 1.81001562 | W24: 1646 | X24: 4.572222222
C25: 2013-08-06 | D25: 2018-05-07 | F25: 1.061916385 | G25: 0.9501013057 | H25: 1.076837568 | I25: 1.887135145 | W25: 1735 | X25: 4.819444444
A26: Swap | B26: 5Y | C26: 2013-08-06 | D26: 2018-08-06 | E26: 1.077 | F26: 1.105423145 | G26: 0.9454656603 | H26: 1.12094 | I26: 1.961794056 | V26: 0.0008078751614 | W26: 1826 | X26: 5.072222222 | Y26: 5.01369863
C27: 2013-08-06 | D27: 2018-11-06 | F27: 1.148704929 | G27: 0.9406269686 | H27: 1.164815065 | I27: 2.035639726 | W27: 1918 | X27: 5.327777778
C28: 2013-08-06 | D28: 2019-02-06 | F28: 1.191282589 | G28: 0.9356428272 | H28: 1.207976946 | I28: 2.107808334 | W28: 2010 | X28: 5.583333333
C29: 2013-08-06 | D29: 2019-05-06 | F29: 1.231804418 | G29: 0.9306898132 | H29: 1.24905527 | I29: 2.17677922 | W29: 2099 | X29: 5.830555556
A30: Swap | B30: 6Y | C30: 2013-08-06 | D30: 2019-08-06 | E30: 1.281 | F30: 1.273004931 | G30: 0.9254411957 | H30: 1.290822031 | I30: 2.243739757 | V30: 6.392112642e-05 | W30: 2191 | X30: 6.086111111 | Y30: 6.01369863
C31: 2013-08-06 | D31: 2019-11-06 | F31: 1.313509577 | G31: 0.9200690188 | H31: 1.331883741 | I31: 2.309777306 | W31: 2283 | X31: 6.341666667
C32: 2013-08-06 | D32: 2020-02-06 | F32: 1.353321119 | G32: 0.9145804953 | H32: 1.372243148 | I32: 2.3737706 | W32: 2375 | X32: 6.597222222
C33: 2013-08-06 | D33: 2020-05-06 | F33: 1.391599173 | G33: 0.9091055453 | H33: 1.411048245 | I33: 2.435071634 | W33: 2465 | X33: 6.847222222
A34: Swap | B34: 7Y | C34: 2013-08-06 | D34: 2020-08-06 | E34: 1.461 | F34: 1.430047682 | G34: 0.9034077282 | H34: 1.450026396 | I34: 2.494386644 | V34: 0.000958045998 | W34: 2557 | X34: 7.102777778 | Y34: 7.016438356
C35: 2013-08-06 | D35: 2020-11-06 | F35: 1.467811264 | G35: 0.8976144573 | H35: 1.488310411 | I35: 2.55235635 | W35: 2649 | X35: 7.358333333
C36: 2013-08-06 | D36: 2021-02-08 | F36: 1.505691208 | G36: 0.891603727 | H36: 1.526712597 | I36: 2.60891888 | W36: 2743 | X36: 7.619444444
C37: 2013-08-06 | D37: 2021-05-10 | F37: 1.541686499 | G37: 0.8857033716 | H37: 1.563204322 | I37: 2.663169176 | W37: 2834 | X37: 7.872222222
A38: Swap | B38: 8Y | C38: 2013-08-06 | D38: 2021-08-06 | E38: 1.622 | F38: 1.575865375 | G38: 0.8799273498 | H38: 1.597854728 | I38: 2.713755295 | V38: 0.002128403582 | W38: 2922 | X38: 8.116666667 | Y38: 8.016438356
C39: 2013-08-06 | D39: 2021-11-08 | F39: 1.611693361 | G39: 0.8736877081 | H39: 1.634177135 | I39: 2.763263022 | W39: 3016 | X39: 8.377777778
C40: 2013-08-06 | D40: 2022-02-08 | F40: 1.646080321 | G40: 0.8675173275 | H40: 1.669038757 | I40: 2.811893673 | W40: 3108 | X40: 8.633333333
C41: 2013-08-06 | D41: 2022-05-09 | F41: 1.67907264 | G41: 0.8614262684 | H41: 1.702486595 | I41: 2.857551939 | W41: 3198 | X41: 8.883333333
A42: Swap | B42: 9Y | C42: 2013-08-06 | D42: 2022-08-08 | E42: 1.769 | F42: 1.71178342 | G42: 0.8552182089 | H42: 1.735649104 | I42: 2.901074422 | V42: 0.003273737034 | W42: 3289 | X42: 9.136111111 | Y42: 9.021917808 | AA42: EUR
C43: 2013-08-06 | D43: 2022-11-08 | F43: 1.744193797 | G43: 0.8488973052 | H43: 1.768507151 | I43: 2.943182326 | W43: 3381 | X43: 9.391666667
C44: 2013-08-06 | D44: 2023-02-08 | F44: 1.775943351 | G44: 0.8425372586 | H44: 1.800695329 | I44: 2.98361086 | W44: 3473 | X44: 9.647222222
C45: 2013-08-06 | D45: 2023-05-08 | F45: 1.806031235 | G45: 0.8363526293 | H45: 1.831198948 | I45: 3.021525587 | W45: 3562 | X45: 9.894444444
A46: Swap | B46: 10Y | C46: 2013-08-06 | D46: 2023-08-07 | E46: 1.901 | F46: 1.836160869 | G46: 0.8300017116 | H46: 1.861744959 | I46: 3.057403091 | V46: 0.004204112868 | W46: 3653 | X46: 10.14722222 | Y46: 10.01917808
C47: 2013-08-06 | D47: 2023-11-07 | F47: 1.865972134 | G47: 0.8235581433 | H47: 1.891968259 | I47: 3.092030361 | W47: 3745 | X47: 10.40277778
C48: 2013-08-06 | D48: 2024-02-07 | F48: 1.895132997 | G48: 0.8170967385 | H48: 1.921532219 | I48: 3.124978203 | W48: 3837 | X48: 10.65833333
C49: 2013-08-06 | D49: 2024-05-07 | F49: 1.923033089 | G49: 0.8107633629 | H49: 1.949818026 | I49: 3.155736282 | W49: 3927 | X49: 10.90833333
A50: Swap | B50: 11Y | C50: 2013-08-06 | D50: 2024-08-06 | F50: 1.950615366 | G50: 0.8043518021 | H50: 1.977781666 | I50: 3.184520285 | W50: 4018 | X50: 11.16111111 | Y50: 11.01917808
C51: 2013-08-06 | D51: 2024-11-06 | F51: 1.97786157 | G51: 0.7978664473 | H51: 2.005404623 | I51: 3.211807238 | W51: 4110 | X51: 11.41666667
C52: 2013-08-06 | D52: 2025-02-06 | F52: 2.00446768 | G52: 0.7913823011 | H52: 2.03237867 | I52: 3.237414905 | W52: 4202 | X52: 11.67222222
C53: 2013-08-06 | D53: 2025-05-06 | F53: 2.029599502 | G53: 0.7851149197 | H53: 2.057858069 | I53: 3.260829249 | W53: 4291 | X53: 11.91944444
A54: Swap | B54: 12Y | C54: 2013-08-06 | D54: 2025-08-06 | E54: 2.113 | F54: 2.054953815 | G54: 0.7786459579 | H54: 2.083563062 | I54: 3.28247747 | V54: 0.003369359607 | W54: 4383 | X54: 12.175 | Y54: 12.01917808
C55: 2013-08-06 | D55: 2025-11-06 | F55: 2.079675657 | G55: 0.7721909383 | H55: 2.108626861 | I55: 3.302698909 | W55: 4475 | X55: 12.43055556
C56: 2013-08-06 | D56: 2026-02-06 | F56: 2.10376758 | G56: 0.7657538657 | H56: 2.133052048 | I56: 3.321125002 | W56: 4567 | X56: 12.68611111
C57: 2013-08-06 | D57: 2026-05-06 | F57: 2.126476848 | G57: 0.7595474138 | H57: 2.15607547 | I57: 3.337513353 | W57: 4656 | X57: 12.93333333
A58: Swap | B58: 13Y | C58: 2013-08-06 | D58: 2026-08-06 | F58: 2.149336888 | G58: 0.7531567946 | H58: 2.179251767 | I58: 3.352173909 | W58: 4748 | X58: 13.18888889 | Y58: 13.01917808
C59: 2013-08-06 | D59: 2026-11-06 | F59: 2.17157453 | G59: 0.7467951785 | H59: 2.201797068 | I59: 3.365330665 | W59: 4840 | X59: 13.44444444
C60: 2013-08-06 | D60: 2027-02-08 | F60: 2.193655378 | G60: 0.7403288136 | H60: 2.224183417 | I60: 3.376842242 | W60: 4934 | X60: 13.70555556
C61: 2013-08-06 | D61: 2027-05-10 | F61: 2.214417565 | G61: 0.7341044358 | H61: 2.245232871 | I61: 3.386529611 | W61: 5025 | X61: 13.95833333
A62: Swap | B62: 14Y | C62: 2013-08-06 | D62: 2027-08-06 | F62: 2.23392313 | G62: 0.7281215138 | H62: 2.265008322 | I62: 3.394231514 | W62: 5113 | X62: 14.20277778 | Y62: 14.01917808
C63: 2013-08-06 | D63: 2027-11-08 | F63: 2.254139702 | G63: 0.7217731009 | H63: 2.285504624 | I63: 3.400372633 | W63: 5207 | X63: 14.46388889
C64: 2013-08-06 | D64: 2028-02-08 | F64: 2.273309565 | G64: 0.7156051499 | H64: 2.304939738 | I64: 3.404924963 | W64: 5299 | X64: 14.71944444
C65: 2013-08-06 | D65: 2028-05-08 | F65: 2.291474894 | G65: 0.7096174525 | H65: 2.323356421 | I65: 3.407689765 | W65: 5389 | X65: 14.96944444
A66: Swap | B66: 15Y | C66: 2013-08-06 | D66: 2028-08-07 | E66: 2.322 | F66: 2.309253371 | G66: 0.7036122386 | H66: 2.341380899 | I66: 3.408786549 | V66: 0.0001624765617 | W66: 5480 | X66: 15.22222222 | Y66: 15.02465753
C67: 2013-08-06 | D67: 2028-11-07 | F67: =($AA$2)+($AA$3)*(((1-EXP(-X67/$AA$6))/(X67/$AA$6)))+($AA$4)*((((1-EXP(-X67/$AA$6))/(X67/$AA$6))-(EXP(-X67/$AA$6))))+($AA$5)*((((1-EXP(-X67/$AA$7))/(X67/$AA$7))-(EXP(-X67/$AA$7)))) -> 2.3266279 | G67: 0.6975936645 | H67: 2.35899584 | I67: 3.40823363 | V67: =IF(E67>0,POWER(E67-F67,2),"") ->  | W67: =D67-C67 -> 5572 | X67: =W67/360 -> 15.47777778
C68: 2013-08-06 | D68: 2029-02-07 | F68: 2.34340228 | G68: =$G$2*EXP(-F68/100*X68) -> 0.6916304593 | H68: 2.376002327 | I68: =36500*(LN(G67)-LN(G68))/(D68-D67) -> 3.406003891 | W68: 5664 | X68: 15.73333333
C69: 2013-08-06 | D69: 2029-05-07 | F69: 2.359060858 | G69: 0.6859166067 | H69: 2.391877568 | I69: 3.402185035 | W69: 5753 | X69: 15.98055556
A70: Swap | B70: 16Y | C70: 2013-08-06 | D70: 2029-08-06 | F70: 2.374495253 | G70: 0.6801323131 | H70: =-100*LN(G70)/((D70-$C$4)/365) -> 2.407525521 | I70: 3.39678565 | W70: 5844 | X70: 16.23333333 | Y70: 16.02191781
C71: 2013-08-06 | D71: 2029-11-06 | F71: 2.389509539 | G71: 0.6743461224 | H71: 2.422747545 | I71: 3.389677008 | W71: 5936 | X71: 16.48888889
C72: 2013-08-06 | D72: 2030-02-06 | F72: 2.403933293 | G72: 0.6686239617 | H72: 2.437370861 | I72: 3.380892611 | W72: 6028 | X72: 16.74444444
C73: 2013-08-06 | D73: 2030-05-06 | F73: 2.417327016 | G73: 0.6631511465 | H73: 2.450949886 | I73: 3.370661838 | W73: 6117 | X73: 16.99166667
A74: Swap | B74: 17Y | C74: 2013-08-06 | D74: 2030-08-06 | F74: 2.430595993 | G74: 0.6575605128 | H74: 2.464402429 | I74: 3.358850364 | W74: 6209 | X74: 17.24722222 | Y74: 17.02191781
C75: 2013-08-06 | D75: 2030-11-06 | F75: 2.443281567 | G75: 0.65203937 | H75: 2.477263489 | I75: 3.345245225 | W75: 6301 | X75: 17.50277778
C76: 2013-08-06 | D76: 2031-02-06 | F76: 2.455386126 | G76: 0.6465893755 | H76: 2.489535483 | I76: 3.3300337 | W76: 6393 | X76: 17.75833333
C77: 2013-08-06 | D77: =AddMonths(D76,3) -> 2031-05-06 | F77: 2.466545303 | G77: 0.6413862835 | H77: 2.500849007 | I77: 3.313515955 | W77: 6482 | X77: 18.00555556
A78: Swap | B78: 18Y | C78: 2013-08-06 | D78: 2031-08-06 | F78: 2.47751371 | G78: 0.636080772 | H78: 2.511969108 | I78: 3.295452724 | W78: 6574 | X78: 18.26111111 | Y78: 18.02191781
C79: 2013-08-06 | D79: 2031-11-06 | F79: 2.487908136 | G79: 0.6308508289 | H79: 2.522507273 | I79: 3.275527855 | W79: 6666 | X79: 18.51666667
C80: 2013-08-06 | D80: 2032-02-06 | F80: 2.497730934 | G80: 0.6256977865 | H80: 2.532465888 | I80: 3.254032486 | W80: 6758 | X80: 18.77222222
C81: 2013-08-06 | D81: 2032-05-07 | F81: 2.506886921 | G81: 0.6206776407 | H81: 2.541748453 | I81: 3.231106478 | W81: 6849 | X81: 19.025
A82: Swap | B82: 19Y | C82: 2013-08-06 | D82: 2032-08-06 | F82: 2.515488199 | G82: 0.6157351142 | H82: 2.550468621 | I82: 3.206781042 | W82: 6940 | X82: 19.27777778 | Y82: 19.02465753
C83: 2013-08-06 | D83: 2032-11-08 | F83: 2.523792989 | G83: 0.6107122987 | H83: 2.55888818 | I83: 3.180502408 | W83: 7034 | X83: 19.53888889
C84: 2013-08-06 | D84: 2033-02-08 | F84: 2.531352665 | G84: 0.6058787538 | H84: 2.566552302 | I84: 3.152524414 | W84: 7126 | X84: 19.79444444
C85: 2013-08-06 | D85: 2033-05-09 | F85: 2.538206137 | G85: 0.6012301267 | H85: 2.573500439 | I85: 3.123638455 | W85: 7216 | X85: 20.04444444
A86: Swap | B86: 20Y | C86: 2013-08-06 | D86: 2033-08-08 | E86: 2.444 | F86: 2.544593109 | G86: 0.5966110352 | H86: 2.579975602 | I86: 3.093434681 | V86: 0.0101189735 | W86: 7307 | X86: 20.29722222 | Y86: 20.03013699
C87: 2013-08-06 | D87: 2033-11-08 | F87: 2.550497852 | G87: 0.5920250398 | H87: 2.585961846 | I87: 3.061412829 | W87: 7399 | X87: 20.55277778
C88: 2013-08-06 | D88: 2034-02-08 | F88: 2.555849446 | G88: 0.587524187 | H88: 2.591387272 | I88: 3.027721198 | W88: 7491 | X88: 20.80833333
C89: 2013-08-06 | D89: 2034-05-08 | F89: 2.560502294 | G89: 0.5832518622 | H89: 2.596104274 | I89: 2.993127479 | W89: 7580 | X89: 21.05555556
A90: Swap | B90: 21Y | C90: 2013-08-06 | D90: 2034-08-07 | F90: 2.564728815 | G90: 0.5789673708 | H90: 2.600389029 | I90: 2.957294996 | W90: 7671 | X90: 21.30833333 | Y90: 21.02739726
C91: 2013-08-06 | D91: 2034-11-07 | F91: 2.568458341 | G91: 0.5747226542 | H91: 2.604169892 | I91: 2.919419895 | W91: 7763 | X91: 21.56388889
C92: 2013-08-06 | D92: 2035-02-07 | F92: 2.57164371 | G92: 0.5705659232 | H92: 2.607399051 | I92: 2.879876903 | W92: 7855 | X92: 21.81944444
C93: 2013-08-06 | D93: 2035-05-07 | F93: 2.5742095 | G93: 0.5666290501 | H93: 2.610000051 | I93: 2.839560164 | W93: 7944 | X93: 22.06666667
A94: Swap | B94: 22Y | C94: 2013-08-06 | D94: 2035-08-06 | F94: 2.576310706 | G94: 0.5626899972 | H94: 2.612130014 | I94: 2.798068776 | W94: 8035 | X94: 22.31944444 | Y94: 22.02465753
C95: 2013-08-06 | D95: 2035-11-06 | F95: 2.577900416 | G95: 0.5587968933 | H95: 2.613741382 | I95: 2.754473354 | W95: 8127 | X95: 22.575
C96: 2013-08-06 | D96: 2036-02-06 | F96: 2.578954842 | G96: 0.5549940366 | H96: 2.61481004 | I96: 2.709212083 | W96: 8219 | X96: 22.83055556
C97: 2013-08-06 | D97: 2036-05-06 | F97: 2.579470525 | G97: 0.5513616572 | H97: 2.615332492 | I97: 2.663043951 | W97: 8309 | X97: 23.08055556
A98: Swap | B98: 23Y | C98: 2013-08-06 | D98: 2036-08-06 | F98: 2.579472563 | G98: 0.5477387849 | H98: 2.615334163 | I98: 2.615485114 | W98: 8401 | X98: 23.33611111 | Y98: 23.02739726
C99: 2013-08-06 | D99: 2036-11-06 | F99: 2.578945916 | G99: 0.5442075842 | H99: 2.614799817 | I99: 2.566005848 | W99: 8493 | X99: 23.59166667
C100: 2013-08-06 | D100: 2037-02-06 | F100: 2.577892787 | G100: 0.5407684941 | H100: 2.613731684 | I100: 2.515126777 | W100: 8585 | X100: 23.84722222
C101: 2013-08-06 | D101: 2037-05-06 | F101: 2.576375055 | G101: 0.5375296012 | H101: 2.612192514 | I101: 2.463723171 | W101: 8674 | X101: 24.09444444
A102: Swap | B102: 24Y | C102: 2013-08-06 | D102: 2037-08-06 | F102: 2.574292527 | G102: 0.5342729531 | H102: 2.610080701 | I102: 2.410973372 | W102: 8766 | X102: 24.35 | Y102: 24.02739726
C103: 2013-08-06 | D103: 2037-11-06 | F103: 2.571690005 | G103: 0.5311096377 | H103: 2.607441678 | I103: 2.355988751 | W103: 8858 | X103: 24.60555556
C104: 2013-08-06 | D104: 2038-02-08 | F104: 2.568496093 | G104: 0.5279743616 | H104: 2.604203052 | I104: 2.299014213 | W104: 8952 | X104: 24.86666667
C105: 2013-08-06 | D105: 2038-05-10 | F105: 2.564891313 | G105: 0.5250327482 | H105: 2.60054787 | I105: 2.240974367 | W105: 9043 | X105: 25.11944444
A106: Swap | B106: 25Y | C106: 2013-08-06 | D106: 2038-08-06 | E106: 2.465 | F106: 2.560927546 | G106: 0.5222760447 | H106: 2.596528732 | I106: 2.183516593 | V106: 0.009202094096 | W106: 9131 | X106: 25.36388889 | Y106: 25.02739726
C107: 2013-08-06 | D107: 2038-11-08 | F107: 2.556176711 | G107: 0.519427272 | H107: 2.591711579 | I107: 2.123781557 | W107: 9225 | X107: 25.625
C108: 2013-08-06 | D108: 2039-02-08 | F108: 2.551012176 | G108: 0.5167354097 | H108: 2.586474994 | I108: 2.061393507 | W108: 9317 | X108: 25.88055556
C109: 2013-08-06 | D109: 2039-05-09 | F109: 2.545469218 | G109: 0.5141946234 | H109: 2.580854744 | I109: 1.999033991 | W109: 9407 | X109: 26.13055556
A110: Swap | B110: 26Y | C110: 2013-08-06 | D110: 2039-08-08 | F110: 2.5393733 | G110: 0.5117190604 | H110: 2.574673856 | I110: 1.935733044 | W110: 9498 | X110: 26.38333333 | Y110: 26.03287671
C111: 2013-08-06 | D111: 2039-11-08 | F111: 2.53271022 | G111: 0.509312219 | H111: 2.567917931 | I111: 1.870442059 | W111: 9590 | X111: 26.63888889
C112: 2013-08-06 | D112: 2040-02-08 | F112: 2.525546337 | G112: 0.5070022442 | H112: 2.560654254 | I112: 1.803494897 | W112: 9682 | X112: 26.89444444
C113: 2013-08-06 | D113: 2040-05-08 | F113: 2.518055626 | G113: 0.5048366321 | H113: 2.55305922 | I113: 1.736002418 | W113: 9772 | X113: 27.14444444
A114: Swap | B114: 27Y | C114: 2013-08-06 | D114: 2040-08-06 | F114: 2.510089633 | G114: 0.5027645539 | H114: 2.544982309 | I114: 1.668009196 | W114: 9862 | X114: 27.39444444 | Y114: 27.03013699
C115: 2013-08-06 | D115: 2040-11-06 | F115: 2.501457414 | G115: 0.5007435589 | H115: 2.536229919 | I115: 1.598011727 | W115: 9954 | X115: 27.65
C116: 2013-08-06 | D116: 2041-02-06 | F116: 2.492332688 | G116: 0.4988212443 | H116: 2.526978185 | I116: 1.525980841 | W116: 10046 | X116: 27.90555556
C117: 2013-08-06 | D117: 2041-05-06 | F117: 2.483038784 | G117: 0.4970559999 | H117: 2.517554938 | I117: 1.453892667 | W117: 10135 | X117: 28.15277778
A118: Swap | B118: 28Y | C118: 2013-08-06 | D118: 2041-08-06 | F118: 2.472951163 | G118: 0.4953293412 | H118: 2.507326945 | I118: 1.380580154 | W118: 10227 | X118: 28.40833333 | Y118: 28.03013699
C119: 2013-08-06 | D119: 2041-11-06 | F119: 2.462377181 | G119: 0.4937029534 | H119: 2.496605842 | I119: 1.30481534 | W119: 10319 | X119: 28.66388889
C120: 2013-08-06 | D120: 2042-02-06 | F120: 2.451318896 | G120: 0.4921774294 | H120: 2.485393713 | I120: 1.227807261 | W120: 10411 | X120: 28.91944444
C121: 2013-08-06 | D121: 2042-05-06 | F121: 2.440162266 | G121: 0.4907982232 | H121: 2.474081886 | I121: 1.150852316 | W121: 10500 | X121: 29.16666667
A122: Swap | B122: 29Y | C122: 2013-08-06 | D122: 2042-08-06 | F122: 2.428157146 | G122: 0.4894729967 | H122: 2.461909781 | I122: 1.07270218 | W122: 10592 | X122: 29.42222222 | Y122: 29.03013699
C123: 2013-08-06 | D123: 2042-11-06 | F123: 2.415673788 | G123: 0.4882505948 | H123: 2.4492528 | I123: 0.9920490643 | W123: 10684 | X123: 29.67777778
C124: 2013-08-06 | D124: 2043-02-06 | F124: 2.402714221 | G124: 0.4871317546 | H124: 2.436113001 | I124: 0.9101823786 | W124: 10776 | X124: 29.93333333
C125: 2013-08-06 | D125: 2043-05-06 | F125: 2.389725985 | G125: 0.4861486825 | H125: 2.422944145 | I125: 0.8284768145 | W125: 10865 | X125: 30.18055556
A126: Swap | B126: 30Y | C126: 2013-08-06 | D126: 2043-08-06 | E126: 2.463 | F126: 2.375835429 | G126: 0.4852359055 | H126: 2.408860433 | I126: 0.7456047034 | V126: 0.007597662486 | W126: 10957 | X126: 30.43611111 | Y126: 30.03013699
V127: =SUM(V2:V126) -> 0.09192931587

Sheet EUR OIS(3M)
A1: Tenor | B1: Stamp date | C1: MaturJty | D1: Days(t) | E1: t(Act/360) | F1: Par Rate | G1: NSS | H1: DFNSS | I1: Zero Rates | J1: Forward Rates | U1: Squared Residuals | V1: NSS Parameters | X1: t(ACT/365)
A2: O/N | B2: 2013-08-02 | C2: 2013-08-05 | D2: =C2-B2 -> 3 | E2: =D2/360 -> 0.008333333333 | F2: 0.093 | G2: =($W$2)+($W$3)*(((1-EXP(-E2/$W$6))/(E2/$W$6)))+($W$4)*((((1-EXP(-E2/$W$6))/(E2/$W$6))-(EXP(-E2/$W$6))))+($W$5)*((((1-EXP(-E2/$W$7))/(E2/$W$7))-(EXP(-E2/$W$7)))) -> 0.01565691114 | H2: =EXP(-G2/100*E2) -> 0.9999986953 | I2: =-100*LN(H2)/((C2-B2)/365) -> 0.01587436824 | J2: =I2 -> 0.01587436824 | U2: =IF(F2>0,POWER(F2-G2,2),"") -> 0.005981953394 | V2: β0 | W2: -140.3620332 | X2: 0.008219178082
A3: T/N | B3: =C2 -> 2013-08-05 | C3: 2013-08-06 | D3: =C3-B3 -> 1 | E3: =D3/360 -> 0.002777777778 | F3: 0.093 | G3: =($W$2)+($W$3)*(((1-EXP(-E3/$W$6))/(E3/$W$6)))+($W$4)*((((1-EXP(-E3/$W$6))/(E3/$W$6))-(EXP(-E3/$W$6))))+($W$5)*((((1-EXP(-E3/$W$7))/(E3/$W$7))-(EXP(-E3/$W$7)))) -> 0.01451660815 | H3: =$H$2*EXP(-G3/100*E3) -> 0.999998292 | I3: =-100*LN(H3)/((C3-B3)/365) -> 0.06234133243 | J3: =36500*(LN(H2)-LN(H3))/(C3-C2) -> 0.01471822771 | U3: 0.006159642797 | V3: β1 | W3: 140.3759796 | X3: 0.01095890411
A4: 1 Week | B4: =C3 -> 2013-08-06 | C4: 2013-08-13 | D4: 7 | E4: 0.01944444444 | F4: 0.097 | G4: 0.01793659891 | H4: =$H$2*EXP(-G4/100*E4) -> 0.9999952076 | I4: =-100*LN(H4)/((C4-$B$4)/365) -> 0.02498901901 | J4: =36500*(LN(H3)-LN(H4))/(C4-C3) -> 0.01608311438 | U4: 0.006251021392 | V4: β2 | W4: 211.143498 | X4: 0.0301369863
A5: 1 Month | B5: =B4 -> 2013-08-06 | C5: 2013-09-06 | D5: 31 | E5: 0.08611111111 | F5: 0.101 | G5: 0.03158908584 | H5: 0.999971494 | I5: =-100*LN(H5)/((C5-$B$4)/365) -> 0.03356405233 | J5: 0.03606510371 | U5: 0.004817875005 | V5: β3 | W5: -205.7566558 | X5: 0.09589041096
A6: 2 Months | B6: =B5 -> 2013-08-06 | C6: 2013-10-07 | D6: 62 | E6: 0.1722222222 | F6: 0.105 | G6: 0.04915854224 | H6: 0.999914037 | I6: 0.05060941437 | J6: 0.06765477641 | U6: 0.003118268404 | V6: τ1 | W6: 95.77460747 | X6: 0.1808219178
A7: 3 Months | B7: =B6 -> 2013-08-06 | C7: 2013-11-06 | D7: 92 | E7: 0.2555555556 | F7: 0.106 | G7: 0.06609154812 | H7: 0.9998298091 | I7: 0.06752712873 | J7: 0.1024904051 | U7: 0.001592684532 | V7: τ2 | W7: 626.7760465 | X7: 0.2630136986
A8: 6 Months | B8: 2013-08-06 | C8: 2014-02-06 | D8: 184 | E8: 0.5111111111 | F8: 0.113 | G8: 0.1175928305 | H8: 0.9993978466 | I8: 0.1194848855 | J8: 0.1714426422 | U8: 2.109409205e-05 | W8: =U127 -> 0.1440819938 | X8: 0.5150684932
A9: 9 Months | B9: 2013-08-06 | C9: 2014-05-06 | D9: 273 | E9: 0.7583333333 | F9: 0.13 | G9: 0.1668041392 | H9: 0.9987345652 | I9: 0.169295307 | J9: 0.272274156 | U9: 0.001354544666 | X9: 0.7589041096
A10: 1 Year | B10: 2013-08-06 | C10: 2014-08-06 | D10: 365 | E10: 1.013888889 | F10: 0.15 | G10: 0.2170453418 | H10: 0.9978005191 | I10: 0.2201903347 | J10: 0.3712157973 | U10: 0.004495077856 | X10: 1.010958904
B11: 2013-08-06 | C11: =AddMonths(C10,3) -> 2014-11-06 | D11: 457 | E11: =D11/360 -> 1.269444444 | G11: 0.2666494876 | H11: 0.9966194551 | I11: 0.2704571608 | J11: 0.4698853295
B12: 2013-08-06 | C12: =AddMonths(C11,3) -> 2015-02-06 | D12: 549 | E12: 1.525 | G12: 0.3156188762 | H12: 0.9951970785 | I12: 0.3200892169 | J12: 0.5666310606
B13: 2013-08-06 | C13: =AddMonths(C12,3) -> 2015-05-06 | D13: 638 | E13: 1.772222222 | G13: 0.3623895482 | H13: 0.9935969347 | I13: 0.3674973807 | J13: 0.6599365037
A14: 2 Years | B14: 2013-08-06 | C14: 2015-08-06 | D14: 730 | E14: 2.027777778 | F14: 0.255 | G14: 0.4101168065 | H14: 0.991716933 | I14: 0.4158781104 | J14: 0.7513879534 | U14: 0.02406122366 | X14: 2.010958904
B15: 2013-08-06 | C15: =AddMonths(C14,3) -> 2015-11-06 | D15: 822 | E15: 2.283333333 | G15: 0.4572160903 | H15: 0.9896132466 | I15: 0.4636242494 | J15: 0.8424794826
B16: 2013-08-06 | C16: =AddMonths(C15,3) -> 2016-02-08 | D16: 916 | E16: 2.544444444 | G16: 0.5046930345 | H16: 0.98723918 | I16: 0.5117546502 | J16: 0.9326396448
B17: 2013-08-06 | C17: 2016-05-09 | D17: 1007 | E17: 2.797222222 | G17: 0.5500347686 | H17: 0.9847307755 | I17: 0.5577214325 | J17: 1.020420032
A18: 3 Years | B18: 2013-08-06 | C18: 2016-08-08 | D18: 1098 | E18: 3.05 | F18: 0.42 | G18: 0.5947687774 | H18: 0.9820218185 | I18: 0.6030728274 | J18: 1.104928374 | U18: 0.03054412555 | X18: 3.019178082
B19: 2013-08-06 | C19: 2016-11-08 | D19: 1190 | E19: 3.305555556 | G19: 0.6393788116 | H19: 0.9790854801 | I19: 0.6482990923 | J19: 1.188064731
B20: 2013-08-06 | C20: 2017-02-08 | D20: 1282 | E20: 3.561111111 | G20: 0.683372161 | H20: 0.9759568089 | I20: 0.6929005885 | J20: 1.269811247
B21: 2013-08-06 | C21: 2017-05-08 | D21: 1371 | E21: 3.808333333 | G21: 0.7253462019 | H21: 0.9727531723 | I21: 0.7354551908 | J21: 1.34843272
A22: 4 Years | B22: 2013-08-06 | C22: 2017-08-07 | D22: 1462 | E22: 4.061111111 | F22: 0.64 | G22: 0.767671027 | H22: 0.9693037215 | I22: 0.7783656985 | J22: 1.424852579 | U22: 0.01629989112 | X22: 4.016438356
B23: 2013-08-06 | C23: 2017-11-07 | D23: 1554 | E23: 4.316666667 | G23: 0.8098541936 | H23: 0.9656440308 | I23: 0.821132814 | J23: 1.500758063
B24: 2013-08-06 | C24: 2018-02-07 | D24: 1646 | E24: 4.572222222 | G24: 0.8514294873 | H24: 0.9618175022 | I24: 0.8632838295 | J24: 1.57526946
B25: 2013-08-06 | C25: 2018-05-07 | D25: 1735 | E25: 4.819444444 | G25: 0.8910726823 | H25: 0.9579630635 | I25: 0.9034761402 | J25: 1.646808088
A26: 5 Years | B26: 2013-08-06 | C26: 2018-08-06 | D26: 1826 | E26: 5.072222222 | F26: 0.864 | G26: 0.9310227577 | H26: 0.9538728971 | I26: 0.9439797099 | J26: 1.7162181 | U26: 0.004492050055 | X26: 5.01369863
B27: 2013-08-06 | C27: 2018-11-06 | D27: 1918 | E27: 5.327777778 | G27: 0.9708137634 | H27: 0.9495908184 | I27: 0.9843221174 | J27: 1.785031205
B28: 2013-08-06 | C28: 2019-02-06 | D28: 2010 | E28: 5.583333333 | G28: 1.010005602 | H28: 0.9451673434 | I28: 1.02405715 | J28: 1.852446202
B29: 2013-08-06 | C29: 2019-05-06 | D29: 2099 | E29: 5.830555556 | G29: 1.047351321 | H29: 0.9407595431 | I29: 1.061920556 | J29: 1.917037923
A30: 6 Years | B30: 2013-08-06 | C30: 2019-08-06 | D30: 2191 | E30: 6.086111111 | F30: 1.065 | G30: 1.08537073 | H30: 0.936076408 | I30: 1.100467059 | J30: 1.979913914 | U30: 0.0004149666454 | X30: 6.01369863
B31: 2013-08-06 | C31: 2019-11-06 | D31: 2283 | E31: 6.341666667 | G31: 1.122797431 | H31: 0.9312706126 | I31: 1.1384127 | J31: 2.042096381
B32: 2013-08-06 | C32: 2020-02-06 | D32: 2375 | E32: 6.597222222 | G32: 1.159633589 | H32: 0.9263483663 | I32: 1.175759663 | J32: 2.102532663
B33: 2013-08-06 | C33: 2020-05-06 | D33: 2465 | E33: 6.847222222 | G33: 1.195099606 | H33: 0.9214263487 | I33: 1.211717532 | J33: 2.160605734
A34: 7 Years | B34: 2013-08-06 | C34: 2020-08-06 | D34: 2557 | E34: 7.102777778 | F34: 1.244 | G34: 1.230773862 | H34: 0.9162917716 | I34: 1.247886568 | J34: 2.216980872 | U34: =IF(F34>0,POWER(F34-G34,2),"") -> 0.0001749307167 | X34: 7.016438356
B35: 2013-08-06 | C35: 2020-11-06 | D35: 2649 | E35: 7.358333333 | G35: 1.26586398 | H35: 0.9110588396 | I35: 1.283463402 | J35: 2.272267347
B36: 2013-08-06 | C36: 2021-02-08 | D36: 2743 | E36: 7.619444444 | G36: 1.301115825 | H36: 0.905616726 | I36: 1.31920424 | J36: 2.326411468
B37: 2013-08-06 | C37: 2021-05-10 | D37: 2834 | E37: 7.872222222 | G37: 1.334665949 | H37: 0.9002622455 | I37: 1.35321978 | J37: 2.378545369
A38: 8 Years | B38: 2013-08-06 | C38: 2021-08-06 | D38: 2922 | E38: 8.116666667 | F38: 1.406 | G38: 1.366572416 | H38: 0.8950090648 | I38: 1.385568887 | J38: 2.427357143 | U38: 0.001554534383 | X38: 8.016438356
B39: 2013-08-06 | C39: 2021-11-08 | D39: 3016 | E39: 8.377777778 | G39: 1.400072551 | H39: 0.8893216732 | I39: 1.419533794 | J39: 2.475336545
B40: 2013-08-06 | C40: 2022-02-08 | D40: 3108 | E40: 8.633333333 | G40: 1.432280129 | H40: 0.8836848164 | I40: 1.452188231 | J40: 2.522685869
B41: 2013-08-06 | C41: 2022-05-09 | D41: 3198 | E41: 8.883333333 | G41: 1.46323459 | H41: 0.8781083295 | I41: 1.483572184 | J41: 2.567364709
A42: 9 Years | B42: 2013-08-06 | C42: 2022-08-08 | D42: 3289 | E42: 9.136111111 | F42: 1.555 | G42: 1.493978987 | H42: 0.8724125275 | I42: 1.514743175 | J42: 2.610180834 | U42: 0.003723564035 | X42: 9.021917808
B43: 2013-08-06 | C43: 2022-11-08 | D43: 3381 | E43: 9.391666667 | G43: 1.524497012 | H43: 0.8666006822 | I43: 1.545684668 | J43: 2.65184304
B44: 2013-08-06 | C44: 2023-02-08 | D44: 3473 | E44: 9.647222222 | G44: 1.554449811 | H44: 0.8607402257 | I44: 1.576053104 | J44: 2.692093148
B45: 2013-08-06 | C45: 2023-05-08 | D45: 3562 | E45: 9.894444444 | G45: 1.582889965 | H45: 0.8550293587 | I45: 1.604887917 | J45: 2.730093609
A46: 10 Years | B46: 2013-08-06 | C46: 2023-08-07 | D46: 3653 | E46: 10.14722222 | F46: 1.69 | G46: 1.611426261 | H46: 0.8491526506 | I46: 1.633820218 | J46: 2.766313132 | U46: 0.006173832445 | X46: 10.01917808
B47: 2013-08-06 | C47: 2023-11-07 | D47: 3745 | E47: 10.40277778 | G47: 1.639720091 | H47: 0.8431775367 | I47: 1.662506698 | J47: 2.801547035
B48: 2013-08-06 | C48: 2024-02-07 | D48: 3837 | E48: 10.65833333 | G48: 1.667456884 | H48: 0.8371731018 | I48: 1.690628419 | J48: 2.835365882
B49: 2013-08-06 | C49: 2024-05-07 | D49: 3927 | E49: 10.90833333 | G49: 1.694053672 | H49: 0.8312752378 | I49: 1.717594323 | J49: 2.867240668
A50: 11 Years | B50: 2013-08-06 | C50: 2024-08-06 | D50: 4018 | E50: 11.16111111 | G50: 1.720407936 | H50: 0.8252920576 | I50: 1.744314343 | J50: 2.897386006 | X50: 11.01917808
B51: 2013-08-06 | C51: 2024-11-06 | D51: 4110 | E51: 11.41666667 | G51: 1.746503849 | H51: 0.8192271956 | I51: 1.770772434 | J51: 2.926300782
B52: 2013-08-06 | C52: 2025-02-06 | D52: 4202 | E52: 11.67222222 | G52: 1.772050837 | H52: 0.8131505434 | I52: 1.796673987 | J52: 2.953797734
B53: 2013-08-06 | C53: 2025-05-06 | D53: 4291 | E53: 11.91944444 | G53: 1.796244314 | H53: 0.8072647095 | I53: 1.82120325 | J53: 2.979315164
A54: 12 Years | B54: 2013-08-06 | C54: 2025-08-06 | D54: 4383 | E54: 12.175 | F54: 1.911 | G54: 1.820717269 | H54: 0.8011767999 | I54: 1.846015874 | J54: 3.003309042 | U54: 0.008150971523 | X54: 12.01917808
B55: 2013-08-06 | C55: 2025-11-06 | D55: 4475 | E55: 12.43055556 | G55: 1.844647302 | H55: 0.7950890067 | I55: 1.870278046 | J55: 3.026159553
B56: 2013-08-06 | C56: 2026-02-06 | D56: 4567 | E56: 12.68611111 | G56: 1.868036425 | H56: 0.7890051103 | I56: 1.893991803 | J56: 3.047459876
B57: 2013-08-06 | C57: 2026-05-06 | D57: 4656 | E57: 12.93333333 | G57: 1.890150004 | H57: 0.7831267605 | I57: 1.916412316 | J57: 3.066912135
A58: 13 Years | B58: 2013-08-06 | C58: 2026-08-06 | D58: 4748 | E58: 13.18888889 | G58: 1.912480789 | H58: 0.7770611194 | I58: 1.939053052 | J58: 3.084871152 | X58: 13.01917808
B59: 2013-08-06 | C59: 2026-11-06 | D59: 4840 | E59: 13.44444444 | G59: 1.934276592 | H59: 0.7710099143 | I59: 1.961151384 | J59: 3.101617469
B60: 2013-08-06 | C60: 2027-02-08 | D60: 4934 | E60: 13.70555556 | G60: 1.95599573 | H60: 0.7648455307 | I60: 1.98317199 | J60: 3.116998933
B61: 2013-08-06 | C61: 2027-05-10 | D61: 5025 | E61: 13.95833333 | G61: 1.976493629 | H61: 0.7588987773 | I61: 2.003954407 | J61: 3.13077248
A62: 14 Years | B62: 2013-08-06 | C62: 2027-08-06 | D62: 5113 | E62: 14.20277778 | G62: 1.995823485 | H62: 0.7531704775 | I62: 2.023552569 | J62: 3.142652211 | X62: 14.01917808
B63: 2013-08-06 | C63: 2027-11-08 | D63: 5207 | E63: 14.46388889 | G63: 2.015938586 | H63: 0.7470789411 | I63: 2.043946879 | J63: 3.153267152
B64: 2013-08-06 | C64: 2028-02-08 | D64: 5299 | E64: 14.71944444 | G64: 2.035094852 | H64: 0.741147246 | I64: 2.063369045 | J64: 3.162621435
B65: 2013-08-06 | C65: 2028-05-08 | D65: 5389 | E65: 14.96944444 | G65: 2.053328423 | H65: 0.735376135 | I65: 2.081855711 | J65: 3.170309487
A66: 15 Years | B66: 2013-08-06 | C66: 2028-08-07 | D66: 5480 | E66: 15.22222222 | F66: 2.135 | G66: 2.0712574 | H66: 0.7295752898 | I66: 2.100033555 | J66: 3.176521464 | U66: =IF(F66>0,POWER(F66-G66,2),"") -> 0.00406311902 | X66: 15.02465753
B67: 2013-08-06 | C67: 2028-11-07 | D67: =C67-B67 -> 5572 | E67: =D67/360 -> 15.47777778 | G67: =($W$2)+($W$3)*(((1-EXP(-E67/$W$6))/(E67/$W$6)))+($W$4)*((((1-EXP(-E67/$W$6))/(E67/$W$6))-(EXP(-E67/$W$6))))+($W$5)*((((1-EXP(-E67/$W$7))/(E67/$W$7))-(EXP(-E67/$W$7)))) -> 2.088866882 | H67: 0.723748387 | I67: 2.117887469 | J67: 3.181359761
B68: 2013-08-06 | C68: 2029-02-07 | D68: 5664 | E68: 15.73333333 | G68: 2.105958955 | H68: =$H$2*EXP(-G68/100*E68) -> 0.7179618486 | I68: 2.135216793 | J68: =36500*(LN(H67)-LN(H68))/(C68-C67) -> 3.18477109
B69: 2013-08-06 | C69: 2029-05-07 | D69: 5753 | E69: 15.98055556 | G69: 2.122003121 | H69: 0.7124046556 | I69: =-100*LN(H69)/((C69-$B$4)/365) -> 2.151483665 | J69: 3.186714686
A70: 16 Years | B70: 2013-08-06 | C70: 2029-08-06 | D70: 5844 | E70: 16.23333333 | G70: 2.137910858 | H70: 0.7067661012 | I70: 2.167612213 | J70: 3.187255481 | X70: 16.02191781
B71: =B70 -> 2013-08-06 | C71: 2029-11-06 | D71: 5936 | E71: 16.48888889 | G71: 2.153484478 | H71: 0.7011124665 | I71: 2.183402008 | J71: 3.186397223
B72: 2013-08-06 | C72: 2030-02-06 | D72: 6028 | E72: 16.74444444 | G72: 2.168548299 | H72: 0.6955080662 | I72: 2.198674926 | J72: 3.184110184
B73: 2013-08-06 | C73: 2030-05-06 | D73: 6117 | E73: 16.99166667 | G73: 2.182637571 | H73: 0.6901351678 | I73: 2.212959767 | J73: 3.180476838
A74: 17 Years | B74: 2013-08-06 | C74: 2030-08-06 | D74: 6209 | E74: 17.24722222 | G74: 2.196703982 | H74: 0.6846334304 | I74: 2.227221429 | J74: 3.175466977 | X74: 17.02191781
B75: 2013-08-06 | C75: 2030-11-06 | D75: 6301 | E75: 17.50277778 | G75: 2.210266239 | H75: 0.6791866546 | I75: 2.24097194 | J75: 3.168981918
B76: 2013-08-06 | C76: 2031-02-06 | D76: 6393 | E76: 17.75833333 | G76: 2.223326234 | H76: 0.6737966037 | I76: 2.254213214 | J76: 3.161096619
B77: 2013-08-06 | C77: 2031-05-06 | D77: 6482 | E77: 18.00555556 | G77: 2.235484172 | H77: 0.6686378811 | I77: 2.26653991 | J77: 3.151984444
A78: 18 Years | B78: 2013-08-06 | C78: 2031-08-06 | D78: 6574 | E78: 18.26111111 | G78: 2.247561516 | H78: 0.6633642715 | I78: 2.278784893 | J78: 3.1415238 | X78: 18.02191781
B79: 2013-08-06 | C79: 2031-11-06 | D79: 6666 | E79: 18.51666667 | G79: 2.259142176 | H79: 0.6581521582 | I79: 2.290526294 | J79: 3.129526013
B80: 2013-08-06 | C80: 2032-02-06 | D80: 6758 | E80: 18.77222222 | G80: 2.270228017 | H80: 0.6530030017 | I80: 2.301766008 | J80: 3.116156586
B81: 2013-08-06 | C81: =AddMonths(C80,3) -> 2032-05-07 | D81: 6849 | E81: 19.025 | G81: 2.280708405 | H81: 0.647973111 | I81: 2.312391864 | J81: 3.101507632
A82: 19 Years | B82: 2013-08-06 | C82: 2032-08-06 | D82: 6940 | E82: 19.27777778 | G82: 2.290708293 | H82: 0.6430074561 | I82: 2.322530548 | J82: 3.085605763 | X82: 19.02465753
B83: 2013-08-06 | C83: 2032-11-08 | D83: 7034 | E83: 19.53888889 | G83: 2.300535225 | H83: 0.6379468373 | I83: 2.332493873 | J83: 3.068084071
B84: 2013-08-06 | C84: 2033-02-08 | D84: 7126 | E84: 19.79444444 | G84: 2.309660358 | H84: 0.6330627434 | I84: 2.341745657 | J84: 3.049104836
B85: 2013-08-06 | C85: 2033-05-09 | D85: 7216 | E85: 20.04444444 | G85: 2.318117259 | H85: 0.6283518298 | I85: 2.350319932 | J85: 3.02921198
A86: 20 Years | B86: 2013-08-06 | C86: 2033-08-08 | D86: 7307 | E86: 20.29722222 | F86: 2.275 | G86: 2.326197422 | H86: 0.6236569853 | I86: 2.358512237 | J86: 3.008134992 | U86: 0.002621175983 | X86: 20.03013699
B87: 2013-08-06 | C87: 2033-11-08 | D87: 7399 | E87: 20.55277778 | G87: 2.33388704 | H87: 0.6189814827 | I87: 2.366308574 | J87: 2.985524186
B88: 2013-08-06 | C88: 2034-02-08 | D88: 7491 | E88: 20.80833333 | G88: 2.341096517 | H88: 0.6143782663 | I88: 2.373618103 | J88: 2.961479074
B89: 2013-08-06 | C89: 2034-05-08 | D89: 7580 | E89: 21.05555556 | G89: 2.347615701 | H89: 0.6099948083 | I89: 2.380227757 | J89: 2.936552658
A90: 21 Years | B90: 2013-08-06 | C90: 2034-08-07 | D90: 7671 | E90: 21.30833333 | G90: 2.353820252 | H90: 0.605584501 | I90: 2.386518408 | J90: 2.910508859 | X90: 21.02739726
B91: 2013-08-06 | C91: 2034-11-07 | D91: 7763 | E91: 21.56388889 | G91: 2.359620785 | H91: 0.6012001877 | I91: 2.39239943 | J91: 2.882761634
B92: 2013-08-06 | C92: 2035-02-07 | D92: 7855 | E92: 21.81944444 | G92: 2.364948331 | H92: 0.5968915192 | I92: 2.397800899 | J92: 2.853579149
B93: 2013-08-06 | C93: 2035-05-07 | D93: 7944 | E93: 22.06666667 | G93: 2.36965374 | H93: 0.5927960332 | I93: 2.402571592 | J93: 2.823625495
A94: 22 Years | B94: 2013-08-06 | C94: 2035-08-06 | D94: 8035 | E94: 22.31944444 | G94: 2.374010636 | H94: 0.5886830887 | I94: 2.406988933 | J94: 2.792608264 | X94: 22.02465753
B95: 2013-08-06 | C95: 2035-11-06 | D95: 8127 | E95: 22.575 | G95: 2.377950262 | H95: 0.5846022507 | I95: 2.410983209 | J95: 2.759831078
B96: 2013-08-06 | C96: 2036-02-06 | D96: 8219 | E96: 22.83055556 | G96: 2.381423968 | H96: 0.5805997681 | I96: 2.414505095 | J96: 2.725617838
B97: 2013-08-06 | C97: 2036-05-06 | D97: 8309 | E97: 23.08055556 | G97: 2.384373025 | H97: 0.576760691 | I97: 2.417495049 | J97: 2.690544252
A98: 23 Years | B98: 2013-08-06 | C98: 2036-08-06 | D98: 8401 | E98: 23.33611111 | G98: 2.386930238 | H98: 0.5729149531 | I98: 2.420087716 | J98: 2.654244958 | U98: =IF(F98>0,POWER(F98-G98,2),"") ->  | X98: 23.02739726
B99: 2013-08-06 | C99: 2036-11-06 | D99: 8493 | E99: 23.59166667 | G99: 2.389026794 | H99: 0.5691492696 | I99: 2.422213329 | J99: 2.616314164
B100: 2013-08-06 | C100: 2037-02-06 | D100: 8585 | E100: 23.84722222 | G100: 2.390664449 | H100: 0.5654641569 | I100: 2.423873669 | J100: 2.577148355
B101: 2013-08-06 | C101: 2037-05-06 | D101: 8674 | E101: 24.09444444 | G101: 2.391813652 | H101: 0.5619763474 | I101: 2.425038776 | J101: 2.537425815
A102: 24 Years | B102: 2013-08-06 | C102: 2037-08-06 | D102: 8766 | E102: 24.35 | G102: 2.392553576 | H102: 0.5584511669 | I102: 2.425788919 | J102: 2.496514317 | X102: 24.02739726
B103: 2013-08-06 | C103: 2037-11-06 | D103: 8858 | E103: 24.60555556 | G103: 2.392839778 | H103: 0.5550079586 | I103: 2.42607904 | J103: 2.453722486
B104: 2013-08-06 | C104: 2038-02-08 | D104: 8952 | E104: 24.86666667 | G104: 2.392665382 | H104: 0.5515750149 | I104: 2.425902165 | J104: 2.409234583
B105: 2013-08-06 | C105: 2038-05-10 | D105: 9043 | E105: 25.11944444 | G105: 2.392048787 | H105: 0.5483340098 | I105: 2.425276953 | J105: 2.363772514
A106: 25 Years | B106: 2013-08-06 | C106: 2038-08-06 | D106: 9131 | E106: 25.36388889 | F106: 2.31 | G106: 2.391035145 | H106: 0.5452773023 | I106: 2.424249182 | J106: 2.318634024 | U106: 0.006566694655 | X106: 25.02739726
B107: 2013-08-06 | C107: 2038-11-08 | D107: 9225 | E107: 25.625 | G107: 2.389500805 | H107: 0.5420966968 | I107: 2.422693479 | J107: 2.271575156
B108: 2013-08-06 | C108: 2039-02-08 | D108: 9317 | E108: 25.88055556 | G108: 2.387549139 | H108: 0.5390686848 | I108: 2.420714656 | J108: 2.222294615
B109: 2013-08-06 | C109: 2039-05-09 | D109: 9407 | E109: 26.13055556 | G109: 2.38521083 | H109: 0.536188154 | I109: 2.418343821 | J109: 2.17290977
A110: 26 Years | B110: 2013-08-06 | C110: 2039-08-08 | D110: 9498 | E110: 26.38333333 | G110: 2.382416724 | H110: 0.5333580853 | I110: 2.415510859 | J110: 2.122657331 | X110: 26.03287671
B111: 2013-08-06 | C111: 2039-11-08 | D111: 9590 | E111: 26.63888889 | G111: 2.379154243 | H111: 0.5305815765 | I111: 2.412203017 | J111: 2.070704281
B112: 2013-08-06 | C112: 2040-02-08 | D112: 9682 | E112: 26.89444444 | G112: 2.375453384 | H112: 0.5278905569 | I112: 2.408450711 | J112: 2.01731355
B113: 2013-08-06 | C113: 2040-05-08 | D113: 9772 | E113: 27.14444444 | G113: 2.371410414 | H113: 0.5253411136 | I113: 2.404351543 | J113: 1.963372191
A114: 27 Years | B114: 2013-08-06 | C114: 2040-08-06 | D114: 9862 | E114: 27.39444444 | G114: 2.366951109 | H114: 0.5228741833 | I114: 2.399830258 | J114: 1.908919203 | X114: 27.03013699
B115: 2013-08-06 | C115: 2040-11-06 | D115: 9954 | E115: 27.65 | G115: 2.361964025 | H115: 0.5204380814 | I115: 2.394773866 | J115: 1.852750541
B116: 2013-08-06 | C116: 2041-02-06 | D116: 10046 | E116: 27.90555556 | G116: 2.356545209 | H116: 0.518088948 | I116: 2.389279744 | J116: 1.794839647
B117: 2013-08-06 | C117: 2041-05-06 | D117: 10135 | E117: 28.15277778 | G117: 2.350893815 | H117: 0.5158995431 | I117: 2.383549817 | J117: 1.736776287
A118: 28 Years | B118: 2013-08-06 | C118: 2041-08-06 | D118: 10227 | E118: 28.40833333 | G118: 2.344630468 | H118: 0.5137226536 | I118: 2.377199437 | J118: 1.677622217 | X118: 28.03013699
B119: 2013-08-06 | C119: 2041-11-06 | D119: 10319 | E119: 28.66388889 | G119: 2.337940316 | H119: 0.5116339151 | I119: 2.370416325 | J119: 1.616384935
B120: 2013-08-06 | C120: 2042-02-06 | D120: 10411 | E120: 28.91944444 | G120: 2.33082501 | H120: 0.5096337499 | I120: 2.363202154 | J120: 1.554038851
B121: 2013-08-06 | C121: 2042-05-06 | D121: 10500 | E121: 29.16666667 | G121: 2.32353869 | H121: 0.5077835072 | I121: 2.355814596 | J121: 1.491636297
A122: 29 Years | B122: 2013-08-06 | C122: 2042-08-06 | D122: 10592 | E122: 29.42222222 | G122: 2.315591738 | H122: 0.5059588932 | I122: 2.347757231 | J122: 1.428166621 | X122: 29.03013699
B123: 2013-08-06 | C123: 2042-11-06 | D123: 10684 | E123: 29.67777778 | G123: 2.307224501 | H123: 0.5042242019 | I123: 2.339273743 | J123: 1.362566089
B124: 2013-08-06 | C124: 2043-02-06 | D124: 10776 | E124: 29.93333333 | G124: 2.298438607 | H124: 0.5025799262 | I124: 2.330365785 | J124: 1.295880807
B125: 2013-08-06 | C125: 2043-05-06 | D125: 10865 | E125: 30.18055556 | G125: 2.28954234 | H125: 0.5010757946 | I125: 2.321345923 | J125: 1.22923311
A126: 30 Years | B126: 2013-08-06 | C126: 2043-08-06 | D126: 10957 | E126: 30.43611111 | F126: 2.318 | G126: 2.279937527 | H126: 0.4996109299 | I126: 2.311607672 | J126: 1.161541511 | U126: 0.001448751841 | X126: 30.03013699
U127: =SUM(U2:U126) -> 0.1440819938

Sheet EUR OIS(6M)
A1: Generator | B1: Tenor | C1: Stamp | D1: Start Date | E1: Maturity | F1: Par Rate | G1: Days | H1: t(Act/360) | I1: t(365) | K1: NSS | L1: DFNSS | M1: Zero Rates | N1: Forward Rate | O1: Squared Residuals | P1: NSS Parameters
A2: Money Market | B2: O/N | C2: 2013-08-02 | D2: 2013-08-02 | E2: 2013-08-05 | F2: 0.093 | G2: =E2-D2 -> 3 | H2: =G2/360 -> 0.008333333333 | I2: =G2/365 -> 0.008219178082 | K2: =($Q$2)+($Q$3)*(((1-EXP(-H2/$Q$6))/(H2/$Q$6)))+($Q$4)*((((1-EXP(-H2/$Q$6))/(H2/$Q$6))-(EXP(-H2/$Q$6))))+($Q$5)*((((1-EXP(-H2/$Q$7))/(H2/$Q$7))-(EXP(-H2/$Q$7)))) -> 0.01560112442 | L2: =EXP(-K2/100*H2) -> 0.9999986999 | M2: =-100*LN(L2)/((E2-D2)/365) -> 0.01581780671 | N2: =M2 -> 0.01581780671 | O2: =IF(F2>0,POWER(F2-K2,2),"") -> 0.00599058594 | P2: β0 | Q2: -140.3620616
A3: Money Market | B3: T/N | C3: 2013-08-02 | D3: 2013-08-05 | E3: 2013-08-06 | F3: 0.093 | G3: =E3-D3 -> 1 | H3: =G3/360 -> 0.002777777778 | I3: =G3/365 -> 0.002739726027 | K3: =($Q$2)+($Q$3)*(((1-EXP(-H3/$Q$6))/(H3/$Q$6)))+($Q$4)*((((1-EXP(-H3/$Q$6))/(H3/$Q$6))-(EXP(-H3/$Q$6))))+($Q$5)*((((1-EXP(-H3/$Q$7))/(H3/$Q$7))-(EXP(-H3/$Q$7)))) -> 0.01446082381 | L3: =$L$2*EXP(-K3/100*H3) -> 0.9999982982 | M3: =-100*LN(L3)/((E3-D3)/365) -> 0.06211508871 | N3: =36500*(LN(L2)-LN(L3))/(E3-E2) -> 0.01466166858 | O3: =IF(F3>0,POWER(F3-K3,2),"") -> 0.006168402197 | P3: β1 | Q3: 140.3759522
A4: Money Market | B4: 1 Week | C4: 2013-08-02 | D4: 2013-08-06 | E4: 2013-08-13 | F4: 0.097 | G4: 7 | H4: 0.01944444444 | I4: 0.01917808219 | K4: 0.01788081348 | L4: =$L$2*EXP(-K4/100*H4) -> 0.9999952231 | M4: =-100*LN(L4)/((E4-$D$4)/365) -> 0.02490821813 | N4: =36500*(LN(L3)-LN(L4))/(E4-E3) -> 0.01603463403 | O4: 0.006259845676 | P4: β2 | Q4: 211.1434984
A5: Money Market | B5: 1 Month | C5: 2013-08-02 | D5: 2013-08-06 | E5: 2013-09-06 | F5: 0.101 | G5: 31 | H5: 0.08611111111 | I5: 0.08493150685 | K5: 0.03153331008 | L5: 0.9999715466 | M5: =-100*LN(L5)/((E5-$D$4)/365) -> 0.0335020282 | N5: 0.03600855614 | O5: 0.004825621009 | P5: β3 | Q5: -205.7566557
A6: Money Market | B6: 2 Months | C6: 2013-08-02 | D6: 2013-08-06 | E6: 2013-10-07 | F6: 0.105 | G6: 62 | H6: 0.1722222222 | I6: 0.1698630137 | K6: 0.04910277878 | L6: 0.9999141377 | M6: 0.05055013956 | N6: 0.06759825092 | O6: 0.00312449934 | P6: τ1 | Q6: 95.77460832
A7: Money Market | B7: 3 Months | C7: 2013-08-02 | D7: 2013-08-06 | E7: 2013-11-06 | F7: 0.106 | G7: 92 | H7: 0.2555555556 | I7: 0.2520547945 | K7: 0.06603579642 | L7: 0.9998299562 | M7: 0.06746875831 | N7: 0.1024339037 | O7: 0.001597137567 | P7: τ2 | Q7: 626.7760465
A8: Money Market | B8: 6 Months | C8: 2013-08-02 | D8: 2013-08-06 | E8: 2014-02-06 | F8: 0.113 | G8: 184 | H8: 0.5111111111 | I8: 0.504109589 | K8: 0.1175371151 | L8: 0.9993981358 | M8: 0.119427474 | N8: 0.1713861898 | O8: 2.058541335e-05 | Q8: =O69 -> 0.1440819237
A9: Money Market | B9: 9 Months | C9: 2013-08-02 | D9: 2013-08-06 | E9: 2014-05-06 | F9: 0.13 | G9: 273 | H9: 0.7583333333 | I9: 0.7479452055 | K9: 0.1667484588 | L9: 0.9987349916 | M9: 0.1692382317 | N9: 0.2722177756 | O9: 0.001350449226
A10: Euribor OIS | B10: 1 | C10: 2013-08-02 | D10: 2013-08-06 | E10: 2014-08-06 | F10: 0.15 | G10: 365 | H10: 1.013888889 | I10: 1 | K10: 0.2169896975 | L10: 0.9978010866 | M10: 0.2201334527 | N10: 0.371159489 | O10: 0.004487619576
C11: =C10 -> 2013-08-02 | D11: =D10 -> 2013-08-06 | E11: =AddMonths(E10,6) -> 2015-02-06 | G11: 549 | H11: 1.525 | K11: 0.315563304 | L11: 0.9951979265 | M11: 0.3200325638 | N11: 0.5182019961
A12: Euribor OIS | B12: 2 | C12: =C11 -> 2013-08-02 | D12: =D11 -> 2013-08-06 | E12: 2015-08-06 | F12: 0.255 | G12: 730 | H12: 2.027777778 | I12: 2 | K12: 0.4100613051 | L12: 0.9917180537 | M12: 0.4158216057 | N12: 0.7063640587 | O12: 0.02404400834
C13: 2013-08-02 | D13: 2013-08-06 | E13: =AddMonths(E12,6) -> 2016-02-08 | G13: 916 | H13: 2.544444444 | K13: 0.5046376055 | L13: 0.9872405769 | M13: 0.5116982662 | N13: 0.8879883853
A14: Euribor OIS | B14: 3 | C14: 2013-08-02 | D14: 2013-08-06 | E14: 2016-08-08 | F14: 0.42 | G14: 1098 | H14: 3.05 | I14: 3.008219178 | K14: 0.5947134191 | L14: 0.9820234811 | M14: 0.6030165458 | N14: 1.062618437 | O14: 0.03052477883
C15: 2013-08-02 | D15: 2013-08-06 | E15: =AddMonths(E14,6) -> 2017-02-08 | G15: 1282 | H15: 3.561111111 | K15: 0.683316874 | L15: 0.975958735 | M15: 0.6928444013 | N15: 1.228882365
A16: Euribor OIS | B16: 4 | C16: 2013-08-02 | D16: 2013-08-06 | E16: 2017-08-07 | F16: 0.64 | G16: 1462 | H16: 4.061111111 | I16: 4.005479452 | K16: 0.7676158095 | L16: 0.9693058996 | M16: 0.778309598 | N16: 1.387011721 | O16: 0.01628579482
C17: 2013-08-02 | D17: 2013-08-06 | E17: =AddMonths(E16,6) -> 2018-02-07 | G17: 1646 | H17: 4.572222222 | K17: 0.8513743407 | L17: 0.9618199318 | M17: 0.8632278138 | N17: 1.53795842
A18: Euribor OIS | B18: 5 | C18: 2013-08-02 | D18: 2013-08-06 | E18: 2018-08-06 | F18: 0.864 | G18: 1826 | H18: 5.072222222 | I18: 5.002739726 | K18: 0.9309676801 | L18: 0.9538755663 | M18: 0.9439237744 | N18: 1.681843503 | O18: 0.004484670182
C19: 2013-08-02 | D19: 2013-08-06 | E19: =AddMonths(E18,6) -> 2019-02-06 | G19: 2010 | H19: 5.583333333 | K19: 1.009950594 | L19: 0.9451702507 | M19: 1.024001295 | N19: 1.818683641
A20: Euribor OIS | B20: 6 | C20: 2013-08-02 | D20: 2013-08-06 | E20: 2019-08-06 | F20: 1.065 | G20: 2191 | H20: 6.086111111 | I20: 6.002739726 | K20: 1.085315792 | L20: 0.9360795422 | M20: 1.100411281 | N20: 1.948942066 | O20: 0.0004127314025
C21: 2013-08-02 | D21: 2013-08-06 | E21: =AddMonths(E20,6) -> 2020-02-06 | G21: 2375 | H21: 6.597222222 | K21: 1.159578721 | L21: 0.9263517238 | M21: 1.175703961 | N21: 2.072259736
A22: Euribor OIS | B22: 7 | C22: 2013-08-02 | D22: 2013-08-06 | E22: 2020-08-06 | F22: 1.244 | G22: 2557 | H22: 7.102777778 | I22: 7.005479452 | K22: 1.230719063 | L22: 0.9162953423 | M22: 1.247830942 | N22: 2.189048409 | O22: 0.0001763832828
C23: 2013-08-02 | D23: 2013-08-06 | E23: =AddMonths(E22,6) -> 2021-02-08 | G23: 2743 | H23: 7.619444444 | K23: 1.301061096 | L23: 0.9056205067 | M23: 1.319148689 | N23: 2.299575996
A24: Euribor OIS | B24: 8 | C24: 2013-08-02 | D24: 2013-08-06 | E24: 2021-08-06 | F24: 1.406 | G24: 2922 | H24: 8.116666667 | I24: 8.005479452 | K24: 1.366517755 | L24: 0.8950130398 | M24: 1.385513408 | N24: 2.402487846 | O24: 0.001558847707
C25: 2013-08-02 | D25: 2013-08-06 | E25: =AddMonths(E24,6) -> 2022-02-07 | G25: 3107 | H25: 8.630555556 | K25: 1.43187853 | L25: 0.8837506095 | M25: 1.451781005 | N25: 2.498450834
A26: Euribor OIS | B26: 9 | C26: 2013-08-02 | D26: 2013-08-06 | E26: 2022-08-08 | F26: 1.555 | G26: 3289 | H26: 9.136111111 | I26: 9.010958904 | K26: 1.493924463 | L26: 0.8724168773 | M26: 1.514687842 | N26: 2.588597419 | O26: 0.003730221197
C27: 2013-08-02 | D27: 2013-08-06 | E27: =AddMonths(E26,6) -> 2023-02-08 | G27: 3473 | H27: 9.647222222 | K27: 1.554395356 | L27: 0.8607447516 | M27: 1.575997844 | N27: 2.671914128
A28: Euribor OIS | B28: 10 | C28: 2013-08-02 | D28: 2013-08-06 | E28: 2023-08-07 | F28: 1.69 | G28: 3653 | H28: 10.14722222 | I28: 10.00821918 | K28: 1.611371873 | L28: 0.8491573409 | M28: 1.633765028 | N28: 2.748350758 | O28: 0.006182382345
C29: 2013-08-02 | D29: 2013-08-06 | E29: =AddMonths(E28,6) -> 2024-02-07 | G29: 3837 | H29: 10.65833333 | K29: 1.667402565 | L29: 0.8371779526 | M29: 1.690573301 | N29: 2.818402759
A30: Euribor OIS | B30: 11 | C30: 2013-08-02 | D30: 2013-08-06 | E30: 2024-08-06 | G30: 4018 | H30: 11.16111111 | I30: 11.00821918 | K30: 1.720353684 | L30: 0.8252970588 | M30: 1.744259295 | N30: 2.882343045
C31: 2013-08-02 | D31: 2013-08-06 | E31: =AddMonths(E30,6) -> 2025-02-06 | G31: 4202 | H31: 11.67222222 | K31: 1.771996652 | L31: 0.8131556901 | M31: 1.79661901 | N31: 2.939995823
A32: Euribor OIS | B32: 12 | C32: 2013-08-02 | D32: 2013-08-06 | E32: 2025-08-06 | F32: 1.911 | G32: 4383 | H32: 12.175 | I32: 12.00821918 | K32: 1.820663151 | L32: 0.8011820826 | M32: 1.845960966 | N32: 2.991457645 | O32: 0.008160746347
C33: 2013-08-02 | D33: 2013-08-06 | E33: =AddMonths(E32,6) -> 2026-02-06 | G33: 4567 | H33: 12.68611111 | K33: 1.867982374 | L33: 0.7890105242 | M33: 1.893936964 | N33: 3.036756543
A34: Euribor OIS | B34: 13 | C34: 2013-08-02 | D34: 2013-08-06 | E34: 2026-08-06 | G34: 4748 | H34: 13.18888889 | I34: 13.00821918 | K34: 1.912426804 | L34: 0.7770666557 | M34: 1.938998282 | N34: 3.075987434
C35: 2013-08-02 | D35: 2013-08-06 | E35: =AddMonths(E34,6) -> 2027-02-08 | G35: 4934 | H35: 13.70555556 | K35: 1.955941813 | L35: 0.7648511862 | M35: 1.98311729 | N35: 3.109337986
A36: Euribor OIS | B36: 14 | C36: 2013-08-02 | D36: 2013-08-06 | E36: 2027-08-06 | G36: 5113 | H36: 14.20277778 | I36: 14.00821918 | K36: 1.995769633 | L36: 0.7531762416 | M36: 2.023497936 | N36: 3.136560013
C37: 2013-08-02 | D37: 2013-08-06 | E37: =AddMonths(E36,6) -> 2028-02-07 | G37: 5298 | H37: 14.71666667 | K37: 2.034835663 | L37: 0.7412174205 | M37: 2.063106226 | N37: 3.157793713
A38: Euribor OIS | B38: 15 | C38: 2013-08-02 | D38: 2013-08-06 | E38: 2028-08-07 | F38: 2.135 | G38: 5480 | H38: 15.22222222 | I38: 15.01369863 | K38: 2.071203681 | L38: 0.7295812591 | M38: 2.099979058 | N38: 3.173343153 | O38: 0.004069970293
C39: 2013-08-02 | D39: 2013-08-06 | E39: =AddMonths(E38,6) -> 2029-02-07 | G39: 5664 | H39: 15.73333333 | K39: 2.105905302 | L39: 0.7179679125 | M39: 2.135162365 | N39: 3.183013028
A40: Euribor OIS | B40: 16 | C40: 2013-08-02 | D40: 2013-08-06 | E40: 2029-08-06 | G40: 5844 | H40: 16.23333333 | I40: 16.0109589 | K40: 2.137857269 | L40: 0.7067722528 | M40: 2.167557851 | N40: 3.186935817
C41: 2013-08-02 | D41: 2013-08-06 | E41: =AddMonths(E40,6) -> 2030-02-06 | G41: 6028 | H41: 16.74444444 | K41: 2.168494777 | L41: 0.6955143026 | M41: 2.198620632 | N41: 3.185201558
A42: Euribor OIS | B42: 17 | C42: 2013-08-02 | D42: 2013-08-06 | E42: 2030-08-06 | G42: 6209 | H42: 17.24722222 | I42: 17.0109589 | K42: 2.196650524 | L42: 0.6846397459 | M42: 2.227167202 | N42: 3.177878369
C43: 2013-08-02 | D43: 2013-08-06 | E43: =AddMonths(E42,6) -> 2031-02-06 | G43: 6393 | H43: 17.75833333 | K43: 2.223272842 | L43: 0.6738029956 | M43: 2.254159054 | N43: 3.164987373
A44: Euribor OIS | B44: 18 | C44: 2013-08-02 | D44: 2013-08-06 | E44: 2031-08-06 | G44: 6574 | H44: 18.26111111 | I44: 18.0109589 | K44: 2.247508188 | L44: 0.6633707347 | M44: 2.278730798 | N44: 3.146615661
C45: 2013-08-02 | D45: 2013-08-06 | E45: =AddMonths(E44,6) -> 2032-02-06 | G45: 6758 | H45: 18.77222222 | K45: 2.270174754 | L45: 0.6530095339 | M45: 2.30171198 | N45: 3.122789653
A46: Euribor OIS | B46: 19 | C46: 2013-08-02 | D46: 2013-08-06 | E46: 2032-08-06 | G46: 6940 | H46: 19.27777778 | I46: 19.01369863 | K46: 2.290655094 | L46: 0.6430140536 | M46: 2.322476586 | N46: 3.093505175
C47: 2013-08-02 | D47: 2013-08-06 | E47: =AddMonths(E46,6) -> 2033-02-07 | G47: 7125 | H47: 19.79166667 | K47: 2.309510651 | L47: 0.6331221219 | M47: 2.341593848 | N47: 3.05874953
A48: Euribor OIS | B48: 20 | C48: 2013-08-02 | D48: 2013-08-06 | E48: 2033-08-08 | F48: 2.275 | G48: 7307 | H48: 20.29722222 | I48: 20.01917808 | K48: 2.326144351 | L48: 0.6236637062 | M48: 2.358458406 | N48: 3.018678054 | O48: 0.002615744686
C49: 2013-08-02 | D49: 2013-08-06 | E49: =AddMonths(E48,6) -> 2034-02-08 | G49: 7491 | H49: 20.80833333 | K49: 2.341043511 | L49: 0.6143850456 | M49: 2.373564339 | N49: 2.973450476
A50: Euribor OIS | B50: 21 | C50: 2013-08-02 | D50: 2013-08-06 | E50: 2034-08-07 | G50: 7671 | H50: 21.30833333 | I50: 21.01643836 | K50: 2.353767308 | L50: 0.6055913356 | M50: 2.386464707 | N50: 2.923335037
C51: 2013-08-02 | D51: 2013-08-06 | E51: =AddMonths(E50,6) -> 2035-02-07 | G51: 7855 | H51: 21.81944444 | K51: 2.364895452 | L51: 0.5968984089 | M51: 2.397747263 | N51: 2.868119477
A52: Euribor OIS | B52: 22 | C52: 2013-08-02 | D52: 2013-08-06 | E52: 2035-08-06 | G52: 8035 | H52: 22.31944444 | I52: 22.01369863 | K52: 2.373957819 | L52: 0.5886900312 | M52: 2.406935361 | N52: 2.807893767
C53: 2013-08-02 | D53: 2013-08-06 | E53: =AddMonths(E52,6) -> 2036-02-06 | G53: 8219 | H53: 22.83055556 | K53: 2.381371215 | L53: 0.5806067635 | M53: 2.414451588 | N53: 2.742673782
A54: Euribor OIS | B54: 23 | C54: 2013-08-02 | D54: 2013-08-06 | E54: 2036-08-06 | G54: 8401 | H54: 23.33611111 | I54: 23.01643836 | K54: 2.386877547 | L54: 0.5729220004 | M54: 2.420034272 | N54: 2.672144602
C55: 2013-08-02 | D55: 2013-08-06 | E55: =AddMonths(E54,6) -> 2037-02-06 | G55: 8585 | H55: 23.84722222 | K55: 2.390611821 | L55: 0.5654712563 | M55: 2.423820291 | N55: 2.596680821
A56: Euribor OIS | B56: 24 | C56: 2013-08-02 | D56: 2013-08-06 | E56: 2037-08-06 | G56: 8766 | H56: 24.35 | I56: 24.01643836 | K56: 2.39250101 | L56: 0.5584583177 | M56: 2.425735604 | N56: 2.5165807
C57: 2013-08-02 | D57: 2013-08-06 | E57: =AddMonths(E56,6) -> 2038-02-08 | G57: 8952 | H57: 24.86666667 | K57: 2.392612879 | L57: 0.5515822187 | M57: 2.425848915 | N57: 2.431189149
A58: Euribor OIS | B58: 25 | C58: 2013-08-02 | D58: 2013-08-06 | E58: 2038-08-06 | F58: 2.31 | G58: 9131 | H58: 25.36388889 | I58: 25.01643836 | K58: 2.390982703 | L58: 0.5452845578 | M58: 2.424195993 | N58: 2.341531438 | O58: 0.006558198141
C59: 2013-08-02 | D59: 2013-08-06 | E59: =AddMonths(E58,6) -> 2039-02-07 | G59: 9316 | H59: 25.87777778 | K59: 2.387520361 | L59: 0.5391084548 | M59: 2.42068546 | N59: 2.247416925
A60: Euribor OIS | B60: 26 | C60: 2013-08-02 | D60: 2013-08-06 | E60: 2039-08-08 | G60: 9498 | H60: 26.38333333 | I60: 26.02191781 | K60: 2.382364406 | L60: 0.5333654499 | M60: 2.415457797 | N60: 2.14787042
C61: 2013-08-02 | D61: 2013-08-06 | E61: =AddMonths(E60,6) -> 2040-02-08 | G61: 9682 | H61: 26.89444444 | K61: 2.375401128 | L61: 0.5278979783 | M61: 2.408397712 | N61: 2.043959176
A62: Euribor OIS | B62: 27 | C62: 2013-08-02 | D62: 2013-08-06 | E62: 2040-08-06 | G62: 9862 | H62: 27.39444444 | I62: 27.01917808 | K62: 2.366898913 | L62: 0.5228816622 | M62: 2.399777321 | N62: 1.936096072
C63: 2013-08-02 | D63: 2013-08-06 | E63: =AddMonths(E62,6) -> 2041-02-06 | G63: 10046 | H63: 27.90555556 | K63: 2.356493075 | L63: 0.5180964878 | M63: 2.389226869 | N63: 1.823745582
A64: Euribor OIS | B64: 28 | C64: 2013-08-02 | D64: 2013-08-06 | E64: 2041-08-06 | G64: 10227 | H64: 28.40833333 | I64: 28.01917808 | K64: 2.344578395 | L64: 0.5137302557 | M64: 2.377146623 | N64: 1.706659626
C65: 2013-08-02 | D65: 2013-08-06 | E65: =AddMonths(E64,6) -> 2042-02-06 | G65: 10411 | H65: 28.91944444 | K65: 2.330772998 | L65: 0.5096414181 | M65: 2.363149403 | N65: 1.585162607
A66: Euribor OIS | B66: 29 | C66: 2013-08-02 | D66: 2013-08-06 | E66: 2042-08-06 | G66: 10592 | H66: 29.42222222 | I66: 29.01917808 | K66: 2.315539786 | L66: 0.5059666295 | M66: 2.347704541 | N66: 1.459326293
C67: 2013-08-02 | D67: 2013-08-06 | E67: =AddMonths(E66,6) -> 2043-02-06 | G67: 10776 | H67: 29.93333333 | K67: =($Q$2)+($Q$3)*(((1-EXP(-H67/$Q$6))/(H67/$Q$6)))+($Q$4)*((((1-EXP(-H67/$Q$6))/(H67/$Q$6))-(EXP(-H67/$Q$6))))+($Q$5)*((((1-EXP(-H67/$Q$7))/(H67/$Q$7))-(EXP(-H67/$Q$7)))) -> 2.298386716 | L67: 0.5025877351 | M67: 2.330313157 | N67: 1.329174385 | O67: =IF(F67>0,POWER(F67-K67,2),"") -> 
A68: Euribor OIS | B68: 30 | C68: 2013-08-02 | D68: 2013-08-06 | E68: 2043-08-06 | F68: 2.318 | G68: 10957 | H68: 30.43611111 | I68: 30.01917808 | K68: 2.279885695 | L68: =$L$2*EXP(-K68/100*H68) -> 0.4996188139 | M68: 2.311555105 | N68: =36500*(LN(L67)-LN(L68))/(E68-E67) -> 1.194777379 | O68: 0.001452700217
O69: =SUM(O2:O68) -> 0.1440819237

Sheet Valuation Sheet
A1: Tenor | B1: t | C1: DF(EUR 3M) | D1: FRWD(EUR 3M) | E1: DF(OIS 3M) | F1: FORW(OIS 3M) | G1: DF(EUR 6M) | H1: FORW(EUR 6M) | I1: DF(OIS 6M) | J1: FORW(OIS 6M) | L1: Single curve Framework | M1: Multi-Curve(With Colateral)3m | N1: Multi-Curve(With Colateral)6M | O1: Multi-Curve (Without Collateral)6M
A2: O/N | B2: 0.008333333333 | C2: ='EUR 3M'!G2 -> 0.9999918078 | D2: ='EUR 3M'!I2 -> 0.09967259435 | E2: ='EUR OIS(3M)'!H2 -> 0.9999986953 | F2: ='EUR OIS(3M)'!J2 -> 0.01587436824 | G2: ='EUR 6M'!H2 -> 0.9999894879 | H2: ='EUR 6M'!J2 -> 0.1278981973 | I2: ='EUR OIS(6M)'!L2 -> 0.9999986999 | J2: ='EUR OIS(6M)'!N2 -> 0.01581780671 | L2: =C2*D2 -> 0.09967177781 | M2: =D2*E2 -> 0.0996724643 | N2: =D2*I2 -> 0.09967246477 | O2: =D2*G2 -> 0.09967154658
A3: T/N | B3: 0.002777777778 | C3: ='EUR 3M'!G3 -> 0.9999891122 | D3: ='EUR 3M'!I3 -> 0.09838949124 | E3: ='EUR OIS(3M)'!H3 -> 0.999998292 | F3: ='EUR OIS(3M)'!J3 -> 0.01471822771 | G3: ='EUR 6M'!H3 -> 0.999986007 | H3: ='EUR 6M'!J3 -> 0.1270549988 | I3: ='EUR OIS(6M)'!L3 -> 0.9999982982 | J3: ='EUR OIS(6M)'!N3 -> 0.01466166858 | L3: =C3*D3 -> 0.09838842 | M3: =D3*E3 -> 0.09838932319 | N3: =D3*I3 -> 0.0983893238 | O3: =D3*G3 -> 0.09838811447
A4: 1W | B4: 0.01944444444 | C4: ='EUR 3M'!G4 -> 0.9999722009 | D4: ='EUR 3M'!I4 -> 0.08818205431 | E4: ='EUR OIS(3M)'!H4 -> 0.9999952076 | F4: ='EUR OIS(3M)'!J4 -> 0.01608311438 | G4: ='EUR 6M'!H4 -> 0.9999646345 | H4: ='EUR 6M'!J4 -> 0.1114446168 | I4: ='EUR OIS(6M)'!L4 -> 0.9999952231 | J4: ='EUR OIS(6M)'!N4 -> 0.01603463403 | L4: 0.08817960292 | M4: 0.0881816317 | N4: 0.08818163307 | O4: 0.08817893571
A5: 1M | B5: 0.08611111111 | C5: ='EUR 3M'!G5 -> 0.9998919362 | D5: ='EUR 3M'!I5 -> 0.1220775134 | E5: ='EUR OIS(3M)'!H5 -> 0.999971494 | F5: ='EUR OIS(3M)'!J5 -> 0.03606510371 | G5: ='EUR 6M'!H5 -> 0.9998705311 | H5: ='EUR 6M'!J5 -> 0.1431273868 | I5: ='EUR OIS(6M)'!L5 -> 0.9999715466 | J5: ='EUR OIS(6M)'!N5 -> 0.03600855614 | L5: 0.1220643212 | M5: 0.1220740335 | N5: 0.1220740399 | O5: 0.1220617082
A6: 2M | B6: 0.1722222222 | C6: ='EUR 3M'!G6 -> 0.9997585141 | D6: ='EUR 3M'!I6 -> 0.1571212714 | E6: ='EUR OIS(3M)'!H6 -> 0.999914037 | F6: ='EUR OIS(3M)'!J6 -> 0.06765477641 | G6: ='EUR 6M'!H6 -> 0.9997274012 | H6: ='EUR 6M'!J6 -> 0.1685577933 | I6: ='EUR OIS(6M)'!L6 -> 0.9999141377 | J6: ='EUR OIS(6M)'!N6 -> 0.06759825092 | L6: 0.1570833288 | M6: 0.1571077648 | N6: 0.1571077806 | O6: 0.1570784404
A7: 3M | B7: 0.2555555556 | C7: ='EUR 3M'!G7 -> 0.9995976744 | D7: ='EUR 3M'!I7 -> 0.1957512167 | E7: ='EUR OIS(3M)'!H7 -> 0.9998298091 | F7: ='EUR OIS(3M)'!J7 -> 0.1024904051 | G7: ='EUR 6M'!H7 -> 0.9995640874 | H7: ='EUR 6M'!J7 -> 0.1987689364 | I7: ='EUR OIS(6M)'!L7 -> 0.9998299562 | J7: ='EUR OIS(6M)'!N7 -> 0.1024339037 | L7: 0.195672461 | M7: 0.1957179016 | N7: 0.1957179304 | O7: 0.1956658863
A8: 3X6 | B8: 0.5111111111 | C8: ='EUR 3M'!G8 -> 0.998912191 | D8: ='EUR 3M'!I8 -> 0.2721608833 | E8: ='EUR OIS(3M)'!H8 -> 0.9993978466 | F8: ='EUR OIS(3M)'!J8 -> 0.1714426422 | G8: ='EUR 6M'!H8 -> 0.9988956078 | H8: ='EUR 6M'!J8 -> 0.2654164266 | I8: ='EUR OIS(6M)'!L8 -> 0.9993981358 | J8: ='EUR OIS(6M)'!N8 -> 0.1713861898 | L8: 0.2718648243 | M8: 0.2719970007 | N8: 0.2719970794 | O8: 0.271860311
A9: 6X9 | B9: 0.7583333333 | C9: ='EUR 3M'!G9 -> 0.9979778316 | D9: ='EUR 3M'!I9 -> 0.3837891694 | E9: ='EUR OIS(3M)'!H9 -> 0.9987345652 | F9: ='EUR OIS(3M)'!J9 -> 0.272274156 | G9: ='EUR 6M'!H9 -> 0.9967434337 | H9: ='EUR 6M'!J9 -> 0.4349505398 | I9: ='EUR OIS(6M)'!L9 -> 0.9987349916 | J9: ='EUR OIS(6M)'!N9 -> 0.2722177756 | L9: 0.383013083 | M9: 0.3833035092 | N9: 0.3833036728 | O9: 0.3825393345
A10: 1 | B10: 1 | C10: ='EUR 3M'!G10 -> 0.9967380219 | D10: ='EUR 3M'!I10 -> 0.493184115 | E10: ='EUR OIS(3M)'!H10 -> 0.9978005191 | F10: ='EUR OIS(3M)'!J10 -> 0.3712157973 | G10: ='EUR 6M'!H10 -> 0.9933034669 | H10: ='EUR 6M'!J10 -> 0.6857983024 | I10: ='EUR OIS(6M)'!L10 -> 0.9978010866 | J10: ='EUR OIS(6M)'!N10 -> 0.371159489 | L10: 0.4915753592 | M10: 0.492099366 | N10: 0.4920996459 | O10: 0.4898814913
A11: =A10+0.25 -> 1.25 | B11: =B10+0.25 -> 1.25 | C11: ='EUR 3M'!G11 -> 0.9952264132 | D11: ='EUR 3M'!I11 -> 0.6021336598 | E11: ='EUR OIS(3M)'!H11 -> 0.9966194551 | F11: ='EUR OIS(3M)'!J11 -> 0.4698853295 | L11: 0.5992593225 | M11: 0.6000981199 | O11: 0
A12: =A11+0.25 -> 1.5 | B12: 1.5 | C12: ='EUR 3M'!G12 -> 0.9934499353 | D12: ='EUR 3M'!I12 -> 0.7088116685 | E12: ='EUR OIS(3M)'!H12 -> 0.9951970785 | F12: ='EUR OIS(3M)'!J12 -> 0.5666310606 | G12: ='EUR 6M'!H11 -> 0.9886553227 | H12: ='EUR 6M'!J11 -> 0.9458669584 | I12: ='EUR OIS(6M)'!L11 -> 0.9951979265 | J12: ='EUR OIS(6M)'!N11 -> 0.5182019961 | L12: 0.7041689062 | M12: 0.7054073017 | N12: 0.7054079028 | O12: 0.7007704289
A13: 1.75 | B13: 1.75 | C13: ='EUR 3M'!G13 -> 0.9914859888 | D13: ='EUR 3M'!I13 -> 0.8115516429 | E13: ='EUR OIS(3M)'!H13 -> 0.9935969347 | F13: ='EUR OIS(3M)'!J13 -> 0.6599365037 | L13: 0.8046420831 | M13: 0.8063552247 | O13: 0
A14: 2 | B14: 2 | C14: ='EUR 3M'!G14 -> 0.989209178 | D14: ='EUR 3M'!I14 -> 0.9121043431 | E14: ='EUR OIS(3M)'!H14 -> 0.991716933 | F14: ='EUR OIS(3M)'!J14 -> 0.7513879534 | G14: ='EUR 6M'!H12 -> 0.9826211331 | H14: ='EUR 6M'!J12 -> 1.201386344 | I14: ='EUR OIS(6M)'!L12 -> 0.9917180537 | J14: ='EUR OIS(6M)'!N12 -> 0.7063640587 | L14: 0.9022619875 | M14: 0.9045493217 | N14: =D14*I14 -> 0.9045503439 | O14: 0.8962530031
A15: 2.25 | B15: 2.25 | C15: ='EUR 3M'!G15 -> 0.9866888462 | D15: ='EUR 3M'!I15 -> 1.012111722 | E15: ='EUR OIS(3M)'!H15 -> 0.9896132466 | F15: ='EUR OIS(3M)'!J15 -> 0.8424794826 | L15: 0.9986393475 | M15: 1.001599168 | O15: 0
A16: 2.5 | B16: 2.5 | C16: ='EUR 3M'!G16 -> 0.9838699107 | D16: ='EUR 3M'!I16 -> 1.110941146 | E16: ='EUR OIS(3M)'!H16 -> 0.98723918 | F16: ='EUR OIS(3M)'!J16 -> 0.9326396448 | G16: ='EUR 6M'!H13 -> 0.9755793763 | H16: ='EUR 6M'!J13 -> 1.44237173 | I16: ='EUR OIS(6M)'!L13 -> 0.9872405769 | J16: ='EUR OIS(6M)'!N13 -> 0.8879883853 | L16: 1.093021566 | M16: 1.096764626 | N16: 1.096766178 | O16: 1.08381127
A17: 2.75 | B17: 2.75 | C17: ='EUR 3M'!G17 -> 0.9809136517 | D17: ='EUR 3M'!I17 -> 1.207006367 | E17: ='EUR OIS(3M)'!H17 -> 0.9847307755 | F17: ='EUR OIS(3M)'!J17 -> 1.020420032 | L17: 1.183969023 | M17: 1.188576316 | N17: 0 | O17: 0
A18: 3 | B18: 3 | C18: ='EUR 3M'!G18 -> 0.9777411802 | D18: ='EUR 3M'!I18 -> 1.299336589 | E18: ='EUR OIS(3M)'!H18 -> 0.9820218185 | F18: ='EUR OIS(3M)'!J18 -> 1.104928374 | G18: ='EUR 6M'!H14 -> 0.9674410017 | H18: ='EUR 6M'!J14 -> 1.661758473 | I18: ='EUR OIS(6M)'!L14 -> 0.9820234811 | J18: ='EUR OIS(6M)'!N14 -> 1.062618437 | L18: 1.27041489 | M18: 1.27597688 | N18: 1.27597904 | O18: 1.257031491
A19: 3.25 | B19: 3.25 | C19: ='EUR 3M'!G19 -> 0.9743215674 | D19: ='EUR 3M'!I19 -> 1.390012302 | E19: ='EUR OIS(3M)'!H19 -> 0.9790854801 | F19: ='EUR OIS(3M)'!J19 -> 1.188064731 | L19: 1.354318965 | M19: 1.360940862 | N19: 0 | O19: 0
A20: 3.5 | B20: 3.5 | C20: ='EUR 3M'!G20 -> 0.9706961323 | D20: ='EUR 3M'!I20 -> 1.479013411 | E20: ='EUR OIS(3M)'!H20 -> 0.9759568089 | F20: ='EUR OIS(3M)'!J20 -> 1.269811247 | G20: ='EUR 6M'!H15 -> 0.9586180515 | H20: ='EUR 6M'!J15 -> 1.857794283 | I20: ='EUR OIS(6M)'!L15 -> 0.975958735 | J20: ='EUR OIS(6M)'!N15 -> 1.228882365 | L20: 1.435672597 | M20: 1.443453209 | N20: 1.443456057 | O20: 1.417808954
A21: 3.75 | B21: 3.75 | C21: ='EUR 3M'!G21 -> 0.9670002722 | D21: ='EUR 3M'!I21 -> 1.564455306 | E21: ='EUR OIS(3M)'!H21 -> 0.9727531723 | F21: ='EUR OIS(3M)'!J21 -> 1.34843272 | L21: 1.512828707 | M21: 1.521828862 | N21: 0 | O21: 0
A22: 4 | B22: 4 | C22: ='EUR 3M'!G22 -> 0.9630368645 | D22: ='EUR 3M'!I22 -> 1.647347303 | E22: ='EUR OIS(3M)'!H22 -> 0.9693037215 | F22: ='EUR OIS(3M)'!J22 -> 1.424852579 | G22: ='EUR 6M'!H16 -> 0.9488522362 | H22: ='EUR 6M'!J16 -> 2.03123212 | I22: ='EUR OIS(6M)'!L16 -> 0.9693058996 | J22: ='EUR OIS(6M)'!N16 -> 1.387011721 | L22: 1.586456182 | M22: 1.596779872 | N22: 1.59678346 | O22: 1.563089172
A23: 4.25 | B23: 4.25 | C23: ='EUR 3M'!G23 -> 0.9588478 | D23: ='EUR 3M'!I23 -> 1.729519435 | E23: ='EUR OIS(3M)'!H23 -> 0.9656440308 | F23: ='EUR OIS(3M)'!J23 -> 1.500758063 | L23: 1.658345905 | M23: 1.670100119 | N23: 0 | O23: 0
A24: 4.5 | B24: 4.5 | C24: ='EUR 3M'!G24 -> 0.9544832782 | D24: ='EUR 3M'!I24 -> 1.81001562 | E24: ='EUR OIS(3M)'!H24 -> 0.9618175022 | F24: ='EUR OIS(3M)'!J24 -> 1.57526946 | G24: ='EUR 6M'!H17 -> 0.9386921241 | H24: ='EUR 6M'!J17 -> 2.183010779 | I24: ='EUR OIS(6M)'!L17 -> 0.9618199318 | J24: ='EUR OIS(6M)'!N17 -> 1.53795842 | L24: 1.727629643 | M24: 1.740904703 | N24: 1.7409091 | O24: 1.699047407
A25: 4.75 | B25: 4.75 | C25: ='EUR 3M'!G25 -> 0.9501013057 | D25: ='EUR 3M'!I25 -> 1.887135145 | E25: ='EUR OIS(3M)'!H25 -> 0.9579630635 | F25: ='EUR OIS(3M)'!J25 -> 1.646808088 | L25: 1.792969566 | M25: 1.807805765 | N25: 0 | O25: 0
A26: 5 | B26: 5 | C26: ='EUR 3M'!G26 -> 0.9454656603 | D26: ='EUR 3M'!I26 -> 1.961794056 | E26: ='EUR OIS(3M)'!H26 -> 0.9538728971 | F26: ='EUR OIS(3M)'!J26 -> 1.7162181 | G26: ='EUR 6M'!H18 -> 0.9278038049 | H26: ='EUR 6M'!J18 -> 2.314428457 | I26: ='EUR OIS(6M)'!L18 -> 0.9538755663 | J26: ='EUR OIS(6M)'!N18 -> 1.681843503 | L26: 1.854808912 | M26: 1.87130218 | N26: 1.871307416 | O26: 1.82015999
A27: 5.25 | B27: 5.25 | C27: ='EUR 3M'!G27 -> 0.9406269686 | D27: ='EUR 3M'!I27 -> 2.035639726 | E27: ='EUR OIS(3M)'!H27 -> 0.9495908184 | F27: ='EUR OIS(3M)'!J27 -> 1.785031205 | L27: 1.914777624 | M27: 1.933024793 | N27: 0 | O27: 0
A28: 5.5 | B28: 5.5 | C28: ='EUR 3M'!G28 -> 0.9356428272 | D28: ='EUR 3M'!I28 -> 2.107808334 | E28: ='EUR OIS(3M)'!H28 -> 0.9451673434 | F28: ='EUR OIS(3M)'!J28 -> 1.852446202 | G28: ='EUR 6M'!H19 -> 0.9167011315 | H28: ='EUR 6M'!J19 -> 2.427712621 | I28: ='EUR OIS(6M)'!L19 -> 0.9451702507 | J28: ='EUR OIS(6M)'!N19 -> 1.818683641 | L28: 1.972155749 | M28: 1.992231603 | N28: 1.992237731 | O28: 1.932230284
A29: 5.75 | B29: 5.75 | C29: ='EUR 3M'!G29 -> 0.9306898132 | D29: ='EUR 3M'!I29 -> 2.17677922 | E29: ='EUR OIS(3M)'!H29 -> 0.9407595431 | F29: ='EUR OIS(3M)'!J29 -> 1.917037923 | L29: 2.025906246 | M29: 2.047825825 | N29: 0 | O29: 0
A30: 6 | B30: 6 | C30: ='EUR 3M'!G30 -> 0.9254411957 | D30: ='EUR 3M'!I30 -> 2.243739757 | E30: ='EUR OIS(3M)'!H30 -> 0.936076408 | F30: ='EUR OIS(3M)'!J30 -> 1.979913914 | G30: ='EUR 6M'!H20 -> 0.9051096502 | H30: ='EUR 6M'!J20 -> 2.524332552 | I30: ='EUR OIS(6M)'!L20 -> 0.9360795422 | J30: ='EUR OIS(6M)'!N20 -> 1.948942066 | L30: 2.076449203 | M30: 2.100311852 | N30: 2.100318884 | O30: 2.030830506
A31: 6.25 | B31: 6.25 | C31: ='EUR 3M'!G31 -> 0.9200690188 | D31: ='EUR 3M'!I31 -> 2.309777306 | E31: ='EUR OIS(3M)'!H31 -> 0.9312706126 | F31: ='EUR OIS(3M)'!J31 -> 2.042096381 | L31: 2.12515454 | M31: 2.151027727 | N31: 0 | O31: 0
A32: 6.5 | B32: 6.5 | C32: ='EUR 3M'!G32 -> 0.9145804953 | D32: ='EUR 3M'!I32 -> 2.3737706 | E32: ='EUR OIS(3M)'!H32 -> 0.9263483663 | F32: ='EUR OIS(3M)'!J32 -> 2.102532663 | G32: ='EUR 6M'!H21 -> 0.8934220695 | H32: ='EUR 6M'!J21 -> 2.60653826 | I32: ='EUR OIS(6M)'!L21 -> 0.9263517238 | J32: ='EUR OIS(6M)'!N21 -> 2.072259736 | L32: 2.171004291 | M32: 2.198938517 | N32: 2.198946487 | O32: 2.120779042
A33: 6.75 | B33: 6.75 | C33: ='EUR 3M'!G33 -> 0.9091055453 | D33: ='EUR 3M'!I33 -> 2.435071634 | E33: ='EUR OIS(3M)'!H33 -> 0.9214263487 | F33: ='EUR OIS(3M)'!J33 -> 2.160605734 | L33: 2.213737125 | M33: 2.243739164 | N33: 0 | O33: 0
A34: 7 | B34: 7 | C34: ='EUR 3M'!G34 -> 0.9034077282 | D34: ='EUR 3M'!I34 -> 2.494386644 | E34: ='EUR OIS(3M)'!H34 -> 0.9162917716 | F34: ='EUR OIS(3M)'!J34 -> 2.216980872 | G34: ='EUR 6M'!H22 -> 0.8813205608 | H34: ='EUR 6M'!J22 -> 2.676213676 | I34: ='EUR OIS(6M)'!L22 -> 0.9162953423 | J34: ='EUR OIS(6M)'!N22 -> 2.189048409 | L34: 2.253448172 | M34: 2.285585957 | N34: 2.285594864 | O34: 2.198354236
A35: 7.25 | B35: 7.25 | C35: ='EUR 3M'!G35 -> 0.8976144573 | D35: ='EUR 3M'!I35 -> 2.55235635 | E35: ='EUR OIS(3M)'!H35 -> 0.9110588396 | F35: ='EUR OIS(3M)'!J35 -> 2.272267347 | L35: 2.29103196 | M35: 2.325346814 | N35: 0 | O35: 0
A36: 7.5 | B36: 7.5 | C36: ='EUR 3M'!G36 -> 0.891603727 | D36: ='EUR 3M'!I36 -> 2.60891888 | E36: ='EUR OIS(3M)'!H36 -> 0.905616726 | F36: ='EUR OIS(3M)'!J36 -> 2.326411468 | G36: ='EUR 6M'!H23 -> 0.8695815354 | H36: ='EUR 6M'!J23 -> 2.734302211 | I36: ='EUR OIS(6M)'!L23 -> 0.9056205067 | J36: ='EUR OIS(6M)'!N23 -> 2.299575996 | L36: 2.326121797 | M36: 2.362680575 | N36: 2.362690438 | O36: 2.268667686
A37: 7.75 | B37: 7.75 | C37: ='EUR 3M'!G37 -> 0.8857033716 | D37: ='EUR 3M'!I37 -> 2.663169176 | E37: ='EUR OIS(3M)'!H37 -> 0.9002622455 | F37: ='EUR OIS(3M)'!J37 -> 2.378545369 | L37: 2.358777918 | M37: 2.397550663 | N37: 0 | O37: 0
A38: 8 | B38: 8 | C38: ='EUR 3M'!G38 -> 0.8799273498 | D38: ='EUR 3M'!I38 -> 2.713755295 | E38: ='EUR OIS(3M)'!H38 -> 0.8950090648 | F38: ='EUR OIS(3M)'!J38 -> 2.427357143 | G38: ='EUR 6M'!H24 -> 0.8574026868 | H38: ='EUR 6M'!J24 -> 2.782762826 | I38: ='EUR OIS(6M)'!L24 -> 0.8950130398 | J38: ='EUR OIS(6M)'!N24 -> 2.402487846 | L38: 2.387907505 | M38: 2.428835588 | N38: 2.428846376 | O38: 2.326781081
A39: 8.25 | B39: 8.25 | C39: ='EUR 3M'!G39 -> 0.8736877081 | D39: ='EUR 3M'!I39 -> 2.763263022 | E39: ='EUR OIS(3M)'!H39 -> 0.8893216732 | F39: ='EUR OIS(3M)'!J39 -> 2.475336545 | L39: 2.414228937 | M39: 2.457429694 | N39: 0 | O39: 0
A40: 8.5 | B40: 8.5 | C40: ='EUR 3M'!G40 -> 0.8675173275 | D40: ='EUR 3M'!I40 -> 2.811893673 | E40: ='EUR OIS(3M)'!H40 -> 0.8836848164 | F40: ='EUR OIS(3M)'!J40 -> 2.522685869 | G40: ='EUR 6M'!H25 -> 0.8454158179 | H40: ='EUR 6M'!J25 -> 2.823553646 | I40: ='EUR OIS(6M)'!L25 -> 0.8837506095 | J40: ='EUR OIS(6M)'!N25 -> 2.498450834 | L40: 2.439366484 | M40: 2.484827744 | N40: 2.485012747 | O40: 2.377219389
A41: 8.75 | B41: 8.75 | C41: ='EUR 3M'!G41 -> 0.8614262684 | D41: ='EUR 3M'!I41 -> 2.857551939 | E41: ='EUR OIS(3M)'!H41 -> 0.8781083295 | F41: ='EUR OIS(3M)'!J41 -> 2.567364709 | L41: 2.461570304 | M41: 2.50924016 | N41: 0 | O41: 0
A42: 9 | B42: 9 | C42: ='EUR 3M'!G42 -> 0.8552182089 | D42: ='EUR 3M'!I42 -> 2.901074422 | E42: ='EUR OIS(3M)'!H42 -> 0.8724125275 | F42: ='EUR OIS(3M)'!J42 -> 2.610180834 | G42: ='EUR 6M'!H26 -> 0.833325568 | H42: ='EUR 6M'!J26 -> 2.85735385 | I42: ='EUR OIS(6M)'!L26 -> 0.8724168773 | J42: ='EUR OIS(6M)'!N26 -> 2.588597419 | L42: 2.481051671 | M42: 2.530933669 | N42: 2.530946288 | O42: 2.41753949
A43: 9.25 | B43: 9.25 | C43: ='EUR 3M'!G43 -> 0.8488973052 | D43: ='EUR 3M'!I43 -> 2.943182326 | E43: ='EUR OIS(3M)'!H43 -> 0.8666006822 | F43: ='EUR OIS(3M)'!J43 -> 2.65184304 | L43: 2.498459546 | M43: 2.550563812 | N43: 0 | O43: 0
A44: 9.5 | B44: 9.5 | C44: ='EUR 3M'!G44 -> 0.8425372586 | D44: ='EUR 3M'!I44 -> 2.98361086 | E44: ='EUR OIS(3M)'!H44 -> 0.8607402257 | F44: ='EUR OIS(3M)'!J44 -> 2.692093148 | G44: ='EUR 6M'!H27 -> 0.8215524217 | H44: ='EUR 6M'!J27 -> 2.885255251 | I44: ='EUR OIS(6M)'!L27 -> 0.8607447516 | J44: ='EUR OIS(6M)'!N27 -> 2.671914128 | L44: 2.513803315 | M44: 2.568113885 | N44: 2.568127389 | O44: 2.451192728
A45: 9.75 | B45: 9.75 | C45: ='EUR 3M'!G45 -> 0.8363526293 | D45: ='EUR 3M'!I45 -> 3.021525587 | E45: ='EUR OIS(3M)'!H45 -> 0.8550293587 | F45: ='EUR OIS(3M)'!J45 -> 2.730093609 | L45: 2.527060869 | M45: 2.583493085 | N45: 0 | O45: 0
A46: 10 | B46: 10 | C46: ='EUR 3M'!G46 -> 0.8300017116 | D46: ='EUR 3M'!I46 -> 3.057403091 | E46: ='EUR OIS(3M)'!H46 -> 0.8491526506 | F46: ='EUR OIS(3M)'!J46 -> 2.766313132 | G46: ='EUR 6M'!H28 -> 0.8095953193 | H46: ='EUR 6M'!J28 -> 2.908341941 | I46: ='EUR OIS(6M)'!L28 -> 0.8491573409 | J46: ='EUR OIS(6M)'!N28 -> 2.748350758 | L46: 2.537649799 | M46: 2.596201939 | N46: 2.596216279 | O46: 2.475259232
A47: 10.25 | B47: 10.25 | C47: ='EUR 3M'!G47 -> 0.8235581433 | D47: ='EUR 3M'!I47 -> 3.092030361 | E47: ='EUR OIS(3M)'!H47 -> 0.8431775367 | F47: ='EUR OIS(3M)'!J47 -> 2.801547035 | L47: 2.546466783 | M47: 2.607130543 | N47: 0 | O47: 0
A48: 10.5 | B48: 10.5 | C48: ='EUR 3M'!G48 -> 0.8170967385 | D48: ='EUR 3M'!I48 -> 3.124978203 | E48: ='EUR OIS(3M)'!H48 -> 0.8371731018 | F48: ='EUR OIS(3M)'!J48 -> 2.835365882 | G48: ='EUR 6M'!H29 -> 0.7979272669 | H48: ='EUR 6M'!J29 -> 2.927475049 | I48: ='EUR OIS(6M)'!L29 -> 0.8371779526 | J48: ='EUR OIS(6M)'!N29 -> 2.818402759 | L48: 2.553409497 | M48: 2.616147695 | N48: 2.616162854 | O48: 2.493505316
A49: 10.75 | B49: 10.75 | C49: ='EUR 3M'!G49 -> 0.8107633629 | D49: ='EUR 3M'!I49 -> 3.155736282 | E49: ='EUR OIS(3M)'!H49 -> 0.8312752378 | F49: ='EUR OIS(3M)'!J49 -> 2.867240668 | L49: 2.55855536 | M49: 2.623285428 | N49: 0 | O49: 0
A50: 11 | B50: 11 | C50: ='EUR 3M'!G50 -> 0.8043518021 | D50: ='EUR 3M'!I50 -> 3.184520285 | E50: ='EUR OIS(3M)'!H50 -> 0.8252920576 | F50: ='EUR OIS(3M)'!J50 -> 2.897386006 | G50: ='EUR 6M'!H30 -> 0.7861757169 | H50: ='EUR 6M'!J30 -> 2.943233683 | I50: ='EUR OIS(6M)'!L30 -> 0.8252970588 | J50: ='EUR OIS(6M)'!N30 -> 2.882343045 | L50: 2.56147463 | M50: 2.628159299 | N50: 2.628175225 | O50: 2.503592518
A51: 11.25 | B51: 11.25 | C51: ='EUR 3M'!G51 -> 0.7978664473 | D51: ='EUR 3M'!I51 -> 3.211807238 | E51: ='EUR OIS(3M)'!H51 -> 0.8192271956 | F51: ='EUR OIS(3M)'!J51 -> 2.926300782 | L51: 2.56259323 | M51: 2.631199836 | N51: 0 | O51: 0
A52: 11.5 | B52: 11.5 | C52: ='EUR 3M'!G52 -> 0.7913823011 | D52: ='EUR 3M'!I52 -> 3.237414905 | E52: ='EUR OIS(3M)'!H52 -> 0.8131505434 | F52: ='EUR OIS(3M)'!J52 -> 2.953797734 | G52: ='EUR 6M'!H31 -> 0.7747348177 | H52: ='EUR 6M'!J31 -> 2.956202705 | I52: ='EUR OIS(6M)'!L31 -> 0.8131556901 | J52: ='EUR OIS(6M)'!N31 -> 2.939995823 | L52: 2.562032857 | M52: 2.632505689 | N52: 2.632522351 | O52: 2.508138046
A53: 11.75 | B53: 11.75 | C53: ='EUR 3M'!G53 -> 0.7851149197 | D53: ='EUR 3M'!I53 -> 3.260829249 | E53: ='EUR OIS(3M)'!H53 -> 0.8072647095 | F53: ='EUR OIS(3M)'!J53 -> 2.979315164 | L53: 2.560125694 | M53: 2.632352376 | N53: 0 | O53: 0
A54: 12 | B54: 12 | C54: ='EUR 3M'!G54 -> 0.7786459579 | D54: ='EUR 3M'!I54 -> 3.28247747 | E54: ='EUR OIS(3M)'!H54 -> 0.8011767999 | F54: ='EUR OIS(3M)'!J54 -> 3.003309042 | G54: ='EUR 6M'!H32 -> 0.7632339812 | H54: ='EUR 6M'!J32 -> 2.966846227 | I54: ='EUR OIS(6M)'!L32 -> 0.8011820826 | J54: ='EUR OIS(6M)'!N32 -> 2.991457645 | L54: 2.555887814 | M54: 2.629844796 | N54: 2.629862136 | O54: 2.505298348
A55: 12.25 | B55: 12.25 | C55: ='EUR 3M'!G55 -> 0.7721909383 | D55: ='EUR 3M'!I55 -> 3.302698909 | E55: ='EUR OIS(3M)'!H55 -> 0.7950890067 | F55: ='EUR OIS(3M)'!J55 -> 3.026159553 | L55: 2.55031417 | M55: 2.625939595 | N55: 0 | O55: 0
A56: 12.5 | B56: 12.5 | C56: ='EUR 3M'!G56 -> 0.7657538657 | D56: ='EUR 3M'!I56 -> 3.321125002 | E56: ='EUR OIS(3M)'!H56 -> 0.7890051103 | F56: ='EUR OIS(3M)'!J56 -> 3.047459876 | G56: ='EUR 6M'!H33 -> 0.7520546866 | H56: ='EUR 6M'!J33 -> 2.97557696 | I56: ='EUR OIS(6M)'!L33 -> 0.7890105242 | J56: ='EUR OIS(6M)'!N33 -> 3.036756543 | L56: 2.543164309 | M56: 2.620384599 | N56: 2.620402579 | O56: 2.497667623
A57: 12.75 | B57: 12.75 | C57: ='EUR 3M'!G57 -> 0.7595474138 | D57: ='EUR 3M'!I57 -> 3.337513353 | E57: ='EUR OIS(3M)'!H57 -> 0.7831267605 | F57: ='EUR OIS(3M)'!J57 -> 3.066912135 | L57: 2.534999636 | M57: 2.61369602 | N57: 0 | O57: 0
A58: 13 | B58: 13 | C58: ='EUR 3M'!G58 -> 0.7531567946 | D58: ='EUR 3M'!I58 -> 3.352173909 | E58: ='EUR OIS(3M)'!H58 -> 0.7770611194 | F58: ='EUR OIS(3M)'!J58 -> 3.084871152 | G58: ='EUR 6M'!H34 -> 0.7407100497 | H58: ='EUR 6M'!J34 -> 2.982754526 | I58: ='EUR OIS(6M)'!L34 -> 0.7770666557 | J58: ='EUR OIS(6M)'!N34 -> 3.075987434 | L58: 2.524712557 | M58: 2.60484401 | N58: 2.604862569 | O58: 2.482988903
A59: 13.25 | B59: 13.25 | C59: ='EUR 3M'!G59 -> 0.7467951785 | D59: ='EUR 3M'!I59 -> 3.365330665 | E59: ='EUR OIS(3M)'!H59 -> 0.7710099143 | F59: ='EUR OIS(3M)'!J59 -> 3.101617469 | L59: 2.513212715 | M59: 2.594703308 | N59: 0 | O59: 0
A60: 13.5 | B60: 13.5 | C60: ='EUR 3M'!G60 -> 0.7403288136 | D60: ='EUR 3M'!I60 -> 3.376842242 | E60: ='EUR OIS(3M)'!H60 -> 0.7648455307 | F60: ='EUR OIS(3M)'!J60 -> 3.116998933 | G60: ='EUR 6M'!H35 -> 0.729933083 | H60: ='EUR 6M'!J35 -> 2.988593479 | I60: ='EUR OIS(6M)'!L35 -> 0.7648511862 | J60: ='EUR OIS(6M)'!N35 -> 3.109337986 | L60: 2.499973611 | M60: 2.582762697 | N60: 2.582781794 | O60: 2.464868869
A61: 13.75 | B61: 13.75 | C61: ='EUR 3M'!G61 -> 0.7341044358 | D61: ='EUR 3M'!I61 -> 3.386529611 | E61: ='EUR OIS(3M)'!H61 -> 0.7588987773 | F61: ='EUR OIS(3M)'!J61 -> 3.13077248 | L61: 2.486066409 | M61: 2.570033181 | N61: 0 | O61: 0
A62: 14 | B62: 14 | C62: ='EUR 3M'!G62 -> 0.7281215138 | D62: ='EUR 3M'!I62 -> 3.394231514 | E62: ='EUR OIS(3M)'!H62 -> 0.7531704775 | F62: ='EUR OIS(3M)'!J62 -> 3.142652211 | G62: ='EUR 6M'!H36 -> 0.7189423128 | H62: ='EUR 6M'!J36 -> 2.993343446 | I62: ='EUR OIS(6M)'!L36 -> 0.7531762416 | J62: ='EUR OIS(6M)'!N36 -> 3.136560013 | L62: 2.471412988 | M62: 2.55643497 | N62: 2.556454534 | O62: 2.440256655
A63: 14.25 | B63: 14.25 | C63: ='EUR 3M'!G63 -> 0.7217731009 | D63: ='EUR 3M'!I63 -> 3.400372633 | E63: ='EUR OIS(3M)'!H63 -> 0.7470789411 | F63: ='EUR OIS(3M)'!J63 -> 3.153267152 | L63: 2.454297499 | M63: 2.540346786 | N63: 0 | O63: 0
A64: 14.5 | B64: 14.5 | C64: ='EUR 3M'!G64 -> 0.7156051499 | D64: ='EUR 3M'!I64 -> 3.404924963 | E64: ='EUR OIS(3M)'!H64 -> 0.741147246 | F64: ='EUR OIS(3M)'!J64 -> 3.162621435 | G64: ='EUR 6M'!H37 -> 0.708277469 | H64: ='EUR 6M'!J37 -> 2.997251598 | I64: ='EUR OIS(6M)'!L37 -> 0.7412174205 | J64: ='EUR OIS(6M)'!N37 -> 3.157793713 | L64: 2.436581838 | M64: 2.523550759 | N64: 2.523789698 | O64: 2.411631635
A65: 14.75 | B65: 14.75 | C65: ='EUR 3M'!G65 -> 0.7096174525 | D65: ='EUR 3M'!I65 -> 3.407689765 | E65: ='EUR OIS(3M)'!H65 -> 0.735376135 | F65: ='EUR OIS(3M)'!J65 -> 3.170309487 | L65: 2.41815613 | M65: 2.505933728 | N65: 0 | O65: 0
A66: 15 | B66: 15 | C66: ='EUR 3M'!G66 -> 0.7036122386 | D66: ='EUR 3M'!I66 -> 3.408786549 | E66: ='EUR OIS(3M)'!H66 -> 0.7295752898 | F66: ='EUR OIS(3M)'!J66 -> 3.176521464 | G66: ='EUR 6M'!H38 -> 0.6976450889 | H66: ='EUR 6M'!J38 -> 3.00042248 | I66: ='EUR OIS(6M)'!L38 -> 0.7295812591 | J66: ='EUR OIS(6M)'!N38 -> 3.173343153 | L66: 2.398463935 | M66: 2.486966434 | N66: 2.486986782 | O66: 2.378123195
A67: 15.25 | B67: 15.25 | C67: ='EUR 3M'!G67 -> 0.6975936645 | D67: ='EUR 3M'!I67 -> 3.40823363 | E67: ='EUR OIS(3M)'!H67 -> 0.723748387 | F67: ='EUR OIS(3M)'!J67 -> 3.181359761 | L67: =C67*D67 -> 2.377562188 | M67: =D67*E67 -> 2.466703592 | N67: =D67*I67 -> 0 | O67: =D67*G67 -> 0
A68: 15.5 | B68: 15.5 | C68: ='EUR 3M'!G68 -> 0.6916304593 | D68: ='EUR 3M'!I68 -> 3.406003891 | E68: ='EUR OIS(3M)'!H68 -> 0.7179618486 | F68: ='EUR OIS(3M)'!J68 -> 3.18477109 | G68: ='EUR 6M'!H39 -> 0.6873896021 | H68: ='EUR 6M'!J39 -> 3.002990237 | I68: ='EUR OIS(6M)'!L39 -> 0.7179679125 | J68: ='EUR OIS(6M)'!N39 -> 3.183013028 | L68: 2.355696035 | M68: 2.44538085 | N68: 2.445401503 | O68: 2.341251659
A69: 15.75 | B69: 15.75 | C69: ='EUR 3M'!G69 -> 0.6859166067 | D69: ='EUR 3M'!I69 -> 3.402185035 | E69: ='EUR OIS(3M)'!H69 -> 0.7124046556 | F69: ='EUR OIS(3M)'!J69 -> 3.186714686 | L69: 2.333615214 | M69: 2.423732458 | N69: 0 | O69: 0
A70: 16 | B70: 16 | C70: ='EUR 3M'!G70 -> 0.6801323131 | D70: ='EUR 3M'!I70 -> 3.39678565 | E70: ='EUR OIS(3M)'!H70 -> 0.7067661012 | F70: ='EUR OIS(3M)'!J70 -> 3.187255481 | G70: ='EUR 6M'!H40 -> 0.6770548942 | H70: ='EUR 6M'!J40 -> 3.005077498 | I70: ='EUR OIS(6M)'!L40 -> 0.7067722528 | J70: ='EUR OIS(6M)'!N40 -> 3.186935817 | L70: 2.310263681 | M70: 2.400732951 | N70: 2.400753846 | O70: 2.299810349
A71: 16.25 | B71: 16.25 | C71: ='EUR 3M'!G71 -> 0.6743461224 | D71: ='EUR 3M'!I71 -> 3.389677008 | E71: ='EUR OIS(3M)'!H71 -> 0.7011124665 | F71: ='EUR OIS(3M)'!J71 -> 3.186397223 | L71: 2.285815547 | M71: 2.376544808 | N71: 0 | O71: 0
A72: 16.5 | B72: 16.5 | C72: ='EUR 3M'!G72 -> 0.6686239617 | D72: ='EUR 3M'!I72 -> 3.380892611 | E72: ='EUR OIS(3M)'!H72 -> 0.6955080662 | F72: ='EUR OIS(3M)'!J72 -> 3.184110184 | G72: ='EUR 6M'!H41 -> 0.6670346703 | H72: ='EUR 6M'!J41 -> 3.006779273 | I72: ='EUR OIS(6M)'!L41 -> 0.6955143026 | J72: ='EUR OIS(6M)'!N41 -> 3.185201558 | L72: 2.260545811 | M72: 2.351438082 | N72: 2.351459166 | O72: 2.255172588
A73: 16.75 | B73: 16.75 | C73: ='EUR 3M'!G73 -> 0.6631511465 | D73: ='EUR 3M'!I73 -> 3.370661838 | E73: ='EUR OIS(3M)'!H73 -> 0.6901351678 | F73: ='EUR OIS(3M)'!J73 -> 3.180476838 | L73: 2.235258262 | M73: 2.326212273 | N73: 0 | O73: 0
A74: 17 | B74: 17 | C74: ='EUR 3M'!G74 -> 0.6575605128 | D74: ='EUR 3M'!I74 -> 3.358850364 | E74: ='EUR OIS(3M)'!H74 -> 0.6846334304 | F74: ='EUR OIS(3M)'!J74 -> 3.175466977 | G74: ='EUR 6M'!H42 -> 0.6569957849 | H74: ='EUR 6M'!J42 -> 3.00815964 | I74: ='EUR OIS(6M)'!L42 -> 0.6846397459 | J74: ='EUR OIS(6M)'!N42 -> 3.177878369 | L74: 2.208647368 | M74: 2.299581247 | N74: 2.29960246 | O74: 2.206750531
A75: 17.25 | B75: 17.25 | C75: ='EUR 3M'!G75 -> 0.65203937 | D75: ='EUR 3M'!I75 -> 3.345245225 | E75: ='EUR OIS(3M)'!H75 -> 0.6791866546 | F75: ='EUR OIS(3M)'!J75 -> 3.168981918 | L75: 2.181231589 | M75: 2.272045913 | N75: 0 | O75: 0
A76: =A75+0.25 -> 17.5 | B76: 17.5 | C76: ='EUR 3M'!G76 -> 0.6465893755 | D76: ='EUR 3M'!I76 -> 3.3300337 | E76: ='EUR OIS(3M)'!H76 -> 0.6737966037 | F76: ='EUR OIS(3M)'!J76 -> 3.161096619 | G76: ='EUR 6M'!H43 -> 0.6472644046 | H76: ='EUR 6M'!J43 -> 3.009279685 | I76: ='EUR OIS(6M)'!L43 -> 0.6738029956 | J76: ='EUR OIS(6M)'!N43 -> 3.164987373 | L76: 2.153164411 | M76: 2.243765398 | N76: 2.243786683 | O76: 2.15541228
A77: 17.75 | B77: 17.75 | C77: ='EUR 3M'!G77 -> 0.6413862835 | D77: ='EUR 3M'!I77 -> 3.313515955 | E77: ='EUR OIS(3M)'!H77 -> 0.6686378811 | F77: ='EUR OIS(3M)'!J77 -> 3.151984444 | L77: 2.125243684 | M77: 2.215542288 | N77: 0 | O77: 0
A78: 18 | B78: 18 | C78: ='EUR 3M'!G78 -> 0.636080772 | D78: ='EUR 3M'!I78 -> 3.295452724 | E78: ='EUR OIS(3M)'!H78 -> 0.6633642715 | F78: ='EUR OIS(3M)'!J78 -> 3.1415238 | G78: ='EUR 6M'!H44 -> 0.6375165473 | H78: ='EUR 6M'!J44 -> 3.010186762 | I78: ='EUR OIS(6M)'!L44 -> 0.6633707347 | J78: ='EUR OIS(6M)'!N44 -> 3.146615661 | L78: 2.096174113 | M78: 2.186085596 | N78: 2.186106895 | O78: 2.100905643
A79: 18.25 | B79: 18.25 | C79: ='EUR 3M'!G79 -> 0.6308508289 | D79: ='EUR 3M'!I79 -> 3.275527855 | E79: ='EUR OIS(3M)'!H79 -> 0.6581521582 | F79: ='EUR OIS(3M)'!J79 -> 3.129526013 | L79: 2.066369463 | M79: 2.155795727 | N79: 0 | O79: 0
A80: 18.5 | B80: 18.5 | C80: ='EUR 3M'!G80 -> 0.6256977865 | D80: ='EUR 3M'!I80 -> 3.254032486 | E80: ='EUR OIS(3M)'!H80 -> 0.6530030017 | F80: ='EUR OIS(3M)'!J80 -> 3.116156586 | G80: ='EUR 6M'!H45 -> 0.6280167648 | H80: ='EUR 6M'!J45 -> 3.010923429 | I80: ='EUR OIS(6M)'!L45 -> 0.6530095339 | J80: ='EUR OIS(6M)'!N45 -> 3.122789653 | L80: 2.036040924 | M80: 2.124892981 | N80: 2.124914237 | O80: 2.043586955
A81: 18.75 | B81: 18.75 | C81: ='EUR 3M'!G81 -> 0.6206776407 | D81: ='EUR 3M'!I81 -> 3.231106478 | E81: ='EUR OIS(3M)'!H81 -> 0.647973111 | F81: ='EUR OIS(3M)'!J81 -> 3.101507632 | L81: 2.005475546 | M81: 2.093670117 | N81: 0 | O81: 0
A82: 19 | B82: 19 | C82: ='EUR 3M'!G82 -> 0.6157351142 | D82: ='EUR 3M'!I82 -> 3.206781042 | E82: ='EUR OIS(3M)'!H82 -> 0.6430074561 | F82: ='EUR OIS(3M)'!J82 -> 3.085605763 | G82: ='EUR 6M'!H46 -> 0.618503587 | H82: ='EUR 6M'!J46 -> 3.011520359 | I82: ='EUR OIS(6M)'!L46 -> 0.6430140536 | J82: ='EUR OIS(6M)'!N46 -> 3.093505175 | L82: 1.974527691 | M82: 2.06198412 | N82: 2.062005277 | O82: 1.983405577
A83: 19.25 | B83: 19.25 | C83: ='EUR 3M'!G83 -> 0.6107122987 | D83: ='EUR 3M'!I83 -> 3.180502408 | E83: ='EUR OIS(3M)'!H83 -> 0.6379468373 | F83: ='EUR OIS(3M)'!J83 -> 3.068084071 | L83: 1.942371936 | M83: 2.028991452 | N83: 0 | O83: 0
A84: 19.5 | B84: 19.5 | C84: ='EUR 3M'!G84 -> 0.6058787538 | D84: ='EUR 3M'!I84 -> 3.152524414 | E84: ='EUR OIS(3M)'!H84 -> 0.6330627434 | F84: ='EUR OIS(3M)'!J84 -> 3.049104836 | G84: ='EUR 6M'!H47 -> 0.6092838419 | H84: ='EUR 6M'!J47 -> 3.01200279 | I84: ='EUR OIS(6M)'!L47 -> 0.6331221219 | J84: ='EUR OIS(6M)'!N47 -> 3.05874953 | L84: 1.910047563 | M84: 1.995745754 | N84: 1.995932946 | O84: 1.920782186
A85: 19.75 | B85: 19.75 | C85: ='EUR 3M'!G85 -> 0.6012301267 | D85: ='EUR 3M'!I85 -> 3.123638455 | E85: ='EUR OIS(3M)'!H85 -> 0.6283518298 | F85: ='EUR OIS(3M)'!J85 -> 3.02921198 | L85: 1.878025544 | M85: 1.962743939 | N85: 0 | O85: 0
A86: 20 | B86: 20 | C86: ='EUR 3M'!G86 -> 0.5966110352 | D86: ='EUR 3M'!I86 -> 3.093434681 | E86: ='EUR OIS(3M)'!H86 -> 0.6236569853 | F86: ='EUR OIS(3M)'!J86 -> 3.008134992 | G86: ='EUR 6M'!H48 -> 0.6001013067 | H86: ='EUR 6M'!J48 -> 3.012391068 | I86: ='EUR OIS(6M)'!L48 -> 0.6236637062 | J86: ='EUR OIS(6M)'!N48 -> 3.018678054 | L86: 1.845577267 | M86: 1.929242147 | N86: 1.929262938 | O86: 1.856374194
A87: 20.25 | B87: 20.25 | C87: ='EUR 3M'!G87 -> 0.5920250398 | D87: ='EUR 3M'!I87 -> 3.061412829 | E87: ='EUR OIS(3M)'!H87 -> 0.6189814827 | F87: ='EUR OIS(3M)'!J87 -> 2.985524186 | L87: 1.812433052 | M87: 1.894957852 | N87: 0 | O87: 0
A88: 20.5 | B88: 20.5 | C88: ='EUR 3M'!G88 -> 0.587524187 | D88: ='EUR 3M'!I88 -> 3.027721198 | E88: ='EUR OIS(3M)'!H88 -> 0.6143782663 | F88: ='EUR OIS(3M)'!J88 -> 2.961479074 | G88: ='EUR 6M'!H49 -> 0.5912514069 | H88: ='EUR 6M'!J49 -> 3.012703128 | I88: ='EUR OIS(6M)'!L49 -> 0.6143850456 | J88: ='EUR OIS(6M)'!N49 -> 2.973450476 | L88: 1.778859435 | M88: 1.860166101 | N88: 1.860186626 | O88: 1.790144418
A89: 20.75 | B89: 20.75 | C89: ='EUR 3M'!G89 -> 0.5832518622 | D89: ='EUR 3M'!I89 -> 2.993127479 | E89: ='EUR OIS(3M)'!H89 -> 0.6099948083 | F89: ='EUR OIS(3M)'!J89 -> 2.936552658 | L89: 1.745747176 | M89: 1.825792223 | N89: 0 | O89: 0
A90: 21 | B90: 21 | C90: ='EUR 3M'!G90 -> 0.5789673708 | D90: ='EUR 3M'!I90 -> 2.957294996 | E90: ='EUR OIS(3M)'!H90 -> 0.605584501 | F90: ='EUR OIS(3M)'!J90 -> 2.910508859 | G90: ='EUR 6M'!H50 -> 0.5823389837 | H90: ='EUR 6M'!J50 -> 3.01295498 | I90: ='EUR OIS(6M)'!L50 -> 0.6055913356 | J90: ='EUR OIS(6M)'!N50 -> 2.923335037 | L90: 1.712177308 | M90: 1.790892014 | N90: 1.790912226 | O90: 1.722148162
A91: 21.25 | B91: 21.25 | C91: ='EUR 3M'!G91 -> 0.5747226542 | D91: ='EUR 3M'!I91 -> 2.919419895 | E91: ='EUR OIS(3M)'!H91 -> 0.6012001877 | F91: ='EUR OIS(3M)'!J91 -> 2.882761634 | L91: 1.67785675 | M91: 1.755155789 | N91: 0 | O91: 0
A92: 21.5 | B92: 21.5 | C92: ='EUR 3M'!G92 -> 0.5705659232 | D92: ='EUR 3M'!I92 -> 2.879876903 | E92: ='EUR OIS(3M)'!H92 -> 0.5968915192 | F92: ='EUR OIS(3M)'!J92 -> 2.853579149 | G92: ='EUR 6M'!H51 -> 0.5737497427 | H92: ='EUR 6M'!J51 -> 3.013158453 | I92: ='EUR OIS(6M)'!L51 -> 0.5968984089 | J92: ='EUR OIS(6M)'!N51 -> 2.868119477 | L92: 1.643159624 | M92: 1.7189741 | N92: 1.718993941 | O92: 1.652328632
A93: 21.75 | B93: 21.75 | C93: ='EUR 3M'!G93 -> 0.5666290501 | D93: ='EUR 3M'!I93 -> 2.839560164 | E93: ='EUR OIS(3M)'!H93 -> 0.5927960332 | F93: ='EUR OIS(3M)'!J93 -> 2.823625495 | L93: 1.608977279 | M93: 1.683280001 | N93: 0 | O93: 0
A94: 22 | B94: 22 | C94: ='EUR 3M'!G94 -> 0.5626899972 | D94: ='EUR 3M'!I94 -> 2.798068776 | E94: ='EUR OIS(3M)'!H94 -> 0.5886830887 | F94: ='EUR OIS(3M)'!J94 -> 2.792608264 | G94: ='EUR 6M'!H52 -> 0.5651000896 | H94: ='EUR 6M'!J52 -> 3.013322496 | I94: ='EUR OIS(6M)'!L52 -> 0.5886900312 | J94: ='EUR OIS(6M)'!N52 -> 2.807893767 | L94: 1.574445312 | M94: 1.64717577 | N94: 1.647195195 | O94: 1.581188916
A95: 22.25 | B95: 22.25 | C95: ='EUR 3M'!G95 -> 0.5587968933 | D95: ='EUR 3M'!I95 -> 2.754473354 | E95: ='EUR OIS(3M)'!H95 -> 0.5846022507 | F95: ='EUR OIS(3M)'!J95 -> 2.759831078 | L95: 1.539191153 | M95: 1.610271322 | N95: 0 | O95: 0
A96: 22.5 | B96: 22.5 | C96: ='EUR 3M'!G96 -> 0.5549940366 | D96: ='EUR 3M'!I96 -> 2.709212083 | E96: ='EUR OIS(3M)'!H96 -> 0.5805997681 | F96: ='EUR OIS(3M)'!J96 -> 2.725617838 | G96: ='EUR 6M'!H53 -> 0.5566723731 | H96: ='EUR 6M'!J53 -> 3.013455524 | I96: ='EUR OIS(6M)'!L53 -> 0.5806067635 | J96: ='EUR OIS(6M)'!N53 -> 2.742673782 | L96: 1.50359655 | M96: 1.572967907 | N96: 1.572986859 | O96: 1.508143519
A97: 22.75 | B97: 22.75 | C97: ='EUR 3M'!G97 -> 0.5513616572 | D97: ='EUR 3M'!I97 -> 2.663043951 | E97: ='EUR OIS(3M)'!H97 -> 0.576760691 | F97: ='EUR OIS(3M)'!J97 -> 2.690544252 | L97: 1.468300326 | M97: 1.535939069 | N97: 0 | O97: 0
A98: 23 | B98: 23 | C98: ='EUR 3M'!G98 -> 0.5477387849 | D98: ='EUR 3M'!I98 -> 2.615485114 | E98: ='EUR OIS(3M)'!H98 -> 0.5729149531 | F98: ='EUR OIS(3M)'!J98 -> 2.654244958 | G98: ='EUR 6M'!H54 -> 0.548279509 | H98: ='EUR 6M'!J54 -> 3.013562588 | I98: ='EUR OIS(6M)'!L54 -> 0.5729220004 | J98: ='EUR OIS(6M)'!N54 -> 2.672144602 | L98: 1.432602639 | M98: 1.498450532 | N98: 1.498468964 | O98: 1.434016894
A99: 23.25 | B99: 23.25 | C99: ='EUR 3M'!G99 -> 0.5442075842 | D99: ='EUR 3M'!I99 -> 2.566005848 | E99: ='EUR OIS(3M)'!H99 -> 0.5691492696 | F99: ='EUR OIS(3M)'!J99 -> 2.616314164 | L99: 1.396439844 | M99: 1.460440354 | N99: 0 | O99: 0
A100: 23.5 | B100: 23.5 | C100: ='EUR 3M'!G100 -> 0.5407684941 | D100: ='EUR 3M'!I100 -> 2.515126777 | E100: ='EUR OIS(3M)'!H100 -> 0.5654641569 | F100: ='EUR OIS(3M)'!J100 -> 2.577148355 | G100: ='EUR 6M'!H55 -> 0.5401467249 | H100: ='EUR 6M'!J55 -> 3.01364858 | I100: ='EUR OIS(6M)'!L55 -> 0.5654712563 | J100: ='EUR OIS(6M)'!N55 -> 2.596680821 | L100: 1.36010132 | M100: 1.422214043 | N100: 1.422231899 | O100: 1.358537492
A101: 23.75 | B101: 23.75 | C101: ='EUR 3M'!G101 -> 0.5375296012 | D101: ='EUR 3M'!I101 -> 2.463723171 | E101: ='EUR OIS(3M)'!H101 -> 0.5619763474 | F101: ='EUR OIS(3M)'!J101 -> 2.537425815 | L101: 1.324324133 | M101: 1.384554149 | N101: 0 | O101: 0
A102: 24 | B102: 24 | C102: ='EUR 3M'!G102 -> 0.5342729531 | D102: ='EUR 3M'!I102 -> 2.410973372 | E102: ='EUR OIS(3M)'!H102 -> 0.5584511669 | F102: ='EUR OIS(3M)'!J102 -> 2.496514317 | G102: ='EUR 6M'!H56 -> 0.5319147533 | H102: ='EUR 6M'!J56 -> 3.013718081 | I102: ='EUR OIS(6M)'!L56 -> 0.5584583177 | J102: ='EUR OIS(6M)'!N56 -> 2.5165807 | L102: 1.288117863 | M102: 1.346410893 | N102: 1.346428133 | O102: 1.282432306
A103: 24.25 | B103: 24.25 | C103: ='EUR 3M'!G103 -> 0.5311096377 | D103: ='EUR 3M'!I103 -> 2.355988751 | E103: ='EUR OIS(3M)'!H103 -> 0.5550079586 | F103: ='EUR OIS(3M)'!J103 -> 2.453722486 | L103: 1.251288332 | M103: 1.307592507 | N103: 0 | O103: 0
A104: 24.5 | B104: 24.5 | C104: ='EUR 3M'!G104 -> 0.5279743616 | D104: ='EUR 3M'!I104 -> 2.299014213 | E104: ='EUR OIS(3M)'!H104 -> 0.5515750149 | F104: ='EUR OIS(3M)'!J104 -> 2.409234583 | G104: ='EUR 6M'!H57 -> 0.5241109307 | H104: ='EUR 6M'!J57 -> 3.013773725 | I104: ='EUR OIS(6M)'!L57 -> 0.5515822187 | J104: ='EUR OIS(6M)'!N57 -> 2.431189149 | L104: 1.213820561 | M104: 1.268078799 | N104: 1.26809536 | O104: 1.204938479
A105: 24.75 | B105: 24.75 | C105: ='EUR 3M'!G105 -> 0.5250327482 | D105: ='EUR 3M'!I105 -> 2.240974367 | E105: ='EUR OIS(3M)'!H105 -> 0.5483340098 | F105: ='EUR OIS(3M)'!J105 -> 2.363772514 | L105: 1.17658493 | M105: 1.22880246 | N105: 0 | O105: 0
A106: 25 | B106: 25 | C106: ='EUR 3M'!G106 -> 0.5222760447 | D106: ='EUR 3M'!I106 -> 2.183516593 | E106: ='EUR OIS(3M)'!H106 -> 0.5452773023 | F106: ='EUR OIS(3M)'!J106 -> 2.318634024 | G106: ='EUR 6M'!H58 -> 0.5161657033 | H106: ='EUR 6M'!J58 -> 3.013818309 | I106: ='EUR OIS(6M)'!L58 -> 0.5452845578 | J106: ='EUR OIS(6M)'!N58 -> 2.341531438 | L106: 1.14039841 | M106: 1.190622038 | N106: 1.19063788 | O106: 1.127056378
A107: 25.25 | B107: 25.25 | C107: ='EUR 3M'!G107 -> 0.519427272 | D107: ='EUR 3M'!I107 -> 2.123781557 | E107: ='EUR OIS(3M)'!H107 -> 0.5420966968 | F107: ='EUR OIS(3M)'!J107 -> 2.271575156 | L107: 1.10315006 | M107: 1.151294967 | N107: 0 | O107: 0
A108: 25.5 | B108: 25.5 | C108: ='EUR 3M'!G108 -> 0.5167354097 | D108: ='EUR 3M'!I108 -> 2.061393507 | E108: ='EUR OIS(3M)'!H108 -> 0.5390686848 | F108: ='EUR OIS(3M)'!J108 -> 2.222294615 | G108: ='EUR 6M'!H59 -> 0.5084667666 | H108: ='EUR 6M'!J59 -> 3.013854471 | I108: ='EUR OIS(6M)'!L59 -> 0.5391084548 | J108: ='EUR OIS(6M)'!N59 -> 2.247416925 | L108: 1.065195018 | M108: 1.111232686 | N108: 1.111314668 | O108: 1.048150091
A109: 25.75 | B109: 25.75 | C109: ='EUR 3M'!G109 -> 0.5141946234 | D109: ='EUR 3M'!I109 -> 1.999033991 | E109: ='EUR OIS(3M)'!H109 -> 0.536188154 | F109: ='EUR OIS(3M)'!J109 -> 2.17290977 | L109: 1.02789253 | M109: 1.071858345 | N109: 0 | O109: 0
A110: 26 | B110: 26 | C110: ='EUR 3M'!G110 -> 0.5117190604 | D110: ='EUR 3M'!I110 -> 1.935733044 | E110: ='EUR OIS(3M)'!H110 -> 0.5333580853 | F110: ='EUR OIS(3M)'!J110 -> 2.122657331 | G110: ='EUR 6M'!H60 -> 0.5007998811 | H110: ='EUR 6M'!J60 -> 3.013883413 | I110: ='EUR OIS(6M)'!L60 -> 0.5333654499 | J110: ='EUR OIS(6M)'!N60 -> 2.14787042 | L110: 0.9905514943 | M110: 1.03243887 | N110: 1.032453126 | O110: 0.9694148781
A111: 26.25 | B111: 26.25 | C111: ='EUR 3M'!G111 -> 0.509312219 | D111: ='EUR 3M'!I111 -> 1.870442059 | E111: ='EUR OIS(3M)'!H111 -> 0.5305815765 | F111: ='EUR OIS(3M)'!J111 -> 2.070704281 | L111: 0.9526389957 | M111: 0.9924220965 | N111: 0 | O111: 0
A112: 26.5 | B112: 26.5 | C112: ='EUR 3M'!G112 -> 0.5070022442 | D112: ='EUR 3M'!I112 -> 1.803494897 | E112: ='EUR OIS(3M)'!H112 -> 0.5278905569 | F112: ='EUR OIS(3M)'!J112 -> 2.01731355 | G112: ='EUR 6M'!H61 -> 0.4934114852 | H112: ='EUR 6M'!J61 -> 3.013906549 | I112: ='EUR OIS(6M)'!L61 -> 0.5278979783 | J112: ='EUR OIS(6M)'!N61 -> 2.043959176 | L112: 0.9143759601 | M112: 0.9520479254 | N112: 0.9520613099 | O112: 0.8898650957
A113: 26.75 | B113: 26.75 | C113: ='EUR 3M'!G113 -> 0.5048366321 | D113: ='EUR 3M'!I113 -> 1.736002418 | E113: ='EUR OIS(3M)'!H113 -> 0.5253411136 | F113: ='EUR OIS(3M)'!J113 -> 1.963372191 | L113: 0.8763976141 | M113: 0.9119934435 | N113: 0 | O113: 0
A114: 27 | B114: 27 | C114: ='EUR 3M'!G114 -> 0.5027645539 | D114: ='EUR 3M'!I114 -> 1.668009196 | E114: ='EUR OIS(3M)'!H114 -> 0.5228741833 | F114: ='EUR OIS(3M)'!J114 -> 1.908919203 | G114: ='EUR 6M'!H62 -> 0.4859715077 | H114: ='EUR 6M'!J62 -> 3.013925126 | I114: ='EUR OIS(6M)'!L62 -> 0.5228816622 | J114: ='EUR OIS(6M)'!N62 -> 1.936096072 | L114: 0.8386158995 | M114: 0.8721589463 | N114: 0.8721714211 | O114: 0.810604944
A115: 27.25 | B115: 27.25 | C115: ='EUR 3M'!G115 -> 0.5007435589 | D115: ='EUR 3M'!I115 -> 1.598011727 | E115: ='EUR OIS(3M)'!H115 -> 0.5204380814 | F115: ='EUR OIS(3M)'!J115 -> 1.852750541 | L115: 0.8001940793 | M115: 0.8316661573 | N115: 0 | O115: 0
A116: 27.5 | B116: 27.5 | C116: ='EUR 3M'!G116 -> 0.4988212443 | D116: ='EUR 3M'!I116 -> 1.525980841 | E116: ='EUR OIS(3M)'!H116 -> 0.518088948 | F116: ='EUR OIS(3M)'!J116 -> 1.794839647 | G116: ='EUR 6M'!H63 -> 0.4787622636 | H116: ='EUR 6M'!J63 -> 3.013940097 | I116: ='EUR OIS(6M)'!L63 -> 0.5180964878 | J116: ='EUR OIS(6M)'!N63 -> 1.823745582 | L116: 0.7611916619 | M116: 0.7905938086 | N116: 0.7906053141 | O116: 0.7305820417
A117: 27.75 | B117: 27.75 | C117: ='EUR 3M'!G117 -> 0.4970559999 | D117: ='EUR 3M'!I117 -> 1.453892667 | E117: ='EUR OIS(3M)'!H117 -> 0.5158995431 | F117: ='EUR OIS(3M)'!J117 -> 1.736776287 | L117: 0.7226660732 | M117: 0.7500625626 | N117: 0 | O117: 0
A118: 28 | B118: 28 | C118: ='EUR 3M'!G118 -> 0.4953293412 | D118: ='EUR 3M'!I118 -> 1.380580154 | E118: ='EUR OIS(3M)'!H118 -> 0.5137226536 | F118: ='EUR OIS(3M)'!J118 -> 1.677622217 | G118: ='EUR 6M'!H64 -> 0.4715431124 | H118: ='EUR 6M'!J64 -> 3.013952104 | I118: ='EUR OIS(6M)'!L64 -> 0.5137302557 | J118: ='EUR OIS(6M)'!N64 -> 1.706659626 | L118: 0.6838418581 | M118: 0.7092353001 | N118: 0.7092457954 | O118: 0.6510030626
A119: 28.25 | B119: 28.25 | C119: ='EUR 3M'!G119 -> 0.4937029534 | D119: ='EUR 3M'!I119 -> 1.30481534 | E119: ='EUR OIS(3M)'!H119 -> 0.5116339151 | F119: ='EUR OIS(3M)'!J119 -> 1.616384935 | L119: 0.6441911872 | M119: 0.667587781 | N119: 0 | O119: 0
A120: 28.5 | B120: 28.5 | C120: ='EUR 3M'!G120 -> 0.4921774294 | D120: ='EUR 3M'!I120 -> 1.227807261 | E120: ='EUR OIS(3M)'!H120 -> 0.5096337499 | F120: ='EUR OIS(3M)'!J120 -> 1.554038851 | G120: ='EUR 6M'!H65 -> 0.4645478594 | H120: ='EUR 6M'!J65 -> 3.013961744 | I120: ='EUR OIS(6M)'!L65 -> 0.5096414181 | J120: ='EUR OIS(6M)'!N65 -> 1.585162607 | L120: 0.6042990214 | M120: 0.6257320184 | N120: 0.6257414335 | O120: 0.5703752348
A121: 28.75 | B121: 28.75 | C121: ='EUR 3M'!G121 -> 0.4907982232 | D121: ='EUR 3M'!I121 -> 1.150852316 | E121: ='EUR OIS(3M)'!H121 -> 0.5077835072 | F121: ='EUR OIS(3M)'!J121 -> 1.491636297 | L121: 0.5648362721 | M121: 0.5843838255 | N121: 0 | O121: 0
A122: 29 | B122: 29 | C122: ='EUR 3M'!G122 -> 0.4894729967 | D122: ='EUR 3M'!I122 -> 1.07270218 | E122: ='EUR OIS(3M)'!H122 -> 0.5059588932 | F122: ='EUR OIS(3M)'!J122 -> 1.428166621 | G122: ='EUR 6M'!H66 -> 0.457543004 | H122: ='EUR 6M'!J66 -> 3.013969472 | I122: ='EUR OIS(6M)'!L66 -> 0.5059666295 | J122: ='EUR OIS(6M)'!N66 -> 1.459326293 | L122: 0.5250587508 | M122: 0.542743208 | N122: 0.5427515066 | O122: 0.490807378
A123: 29.25 | B123: 29.25 | C123: ='EUR 3M'!G123 -> 0.4882505948 | D123: ='EUR 3M'!I123 -> 0.9920490643 | E123: ='EUR OIS(3M)'!H123 -> 0.5042242019 | F123: ='EUR OIS(3M)'!J123 -> 1.362566089 | L123: 0.4843685458 | M123: 0.5002151477 | N123: 0 | O123: 0
A124: 29.5 | B124: 29.5 | C124: ='EUR 3M'!G124 -> 0.4871317546 | D124: ='EUR 3M'!I124 -> 0.9101823786 | E124: ='EUR OIS(3M)'!H124 -> 0.5025799262 | F124: ='EUR OIS(3M)'!J124 -> 1.295880807 | G124: ='EUR 6M'!H67 -> 0.4507554089 | H124: ='EUR 6M'!J67 -> 3.013975672 | I124: ='EUR OIS(6M)'!L67 -> 0.5025877351 | J124: ='EUR OIS(6M)'!N67 -> 1.329174385 | L124: 0.4433787391 | M124: 0.4574393927 | N124: 0.4574465002 | O124: 0.4102696302
A125: 29.75 | B125: 29.75 | C125: ='EUR 3M'!G125 -> 0.4861486825 | D125: ='EUR 3M'!I125 -> 0.8284768145 | E125: ='EUR OIS(3M)'!H125 -> 0.5010757946 | F125: ='EUR OIS(3M)'!J125 -> 1.22923311 | L125: 0.4027629119 | M125: 0.4151296781
A126: 30 | B126: 30 | C126: ='EUR 3M'!G126 -> 0.4852359055 | D126: ='EUR 3M'!I126 -> 0.7456047034 | E126: ='EUR OIS(3M)'!H126 -> 0.4996109299 | F126: ='EUR OIS(3M)'!J126 -> 1.161541511 | L126: 0.3617941734 | M126: 0.3725122592

Sheet Results
B1: Method of Valuation
A2: Time to maturity | B2: Single Curve | C2: Multi With Collateral | D2: Multi Without Collateral
A3: 10 Years | B3: =SUMIF('Valuation Sheet'!$B:$B,"<=10",'Valuation Sheet'!L:L)/(2*SUMIF('Valuation Sheet'!C:C,"<=10")) -> 0.37335467 | C3: =SUMIF('Valuation Sheet'!$B:$B,"<=10",'Valuation Sheet'!M:M)/(2*SUMIF('Valuation Sheet'!D:D,"<=10")) -> 0.1195330216 | D3: =SUMIF('Valuation Sheet'!$B:$B,"<=10",'Valuation Sheet'!N:N)/(2*SUMIF('Valuation Sheet'!E:E,"<=10")) -> 0.1923527083
A4: 20 Years | B4: =SUMIF('Valuation Sheet'!$B:$B,"<=20",'Valuation Sheet'!L:L)/(2*SUMIF('Valuation Sheet'!C:C,"<=20")) -> 0.8804694411 | C4: =SUMIF('Valuation Sheet'!$B:$B,"<=20",'Valuation Sheet'!M:M)/(2*SUMIF('Valuation Sheet'!D:D,"<=20")) -> 0.2855649879 | D4: =SUMIF('Valuation Sheet'!$B:$B,"<=20",'Valuation Sheet'!N:N)/(2*SUMIF('Valuation Sheet'!E:E,"<=20")) -> 0.4477448756
A5: 30 Years | B5: =SUMIF('Valuation Sheet'!$B:$B,"<=30",'Valuation Sheet'!L:L)/(2*SUMIF('Valuation Sheet'!C:C,"<=30")) -> 1.122991865 | C5: =SUMIF('Valuation Sheet'!$B:$B,"<=30",'Valuation Sheet'!M:M)/(2*SUMIF('Valuation Sheet'!D:D,"<=30")) -> 0.3655636151 | D5: =SUMIF('Valuation Sheet'!$B:$B,"<=30",'Valuation Sheet'!N:N)/(2*SUMIF('Valuation Sheet'!E:E,"<=30")) -> 0.5671767128
A8: We are using the formula on the right to find the swap rates(Pricing). The first fraction in the numerator is our forward rates for the EUR 3M. Alpha in the denominator is the frequency e.g (annually, semiannualy,quarterly etc) of the swap we are valuing. In our sheets we have assumed a frequency of twice per year i.e. semi-annually. In the table below we show the rates under different scenarios i.e using the single curve as well as multi curve.
A17: Single Curve-Using the EUR 3M curve to generate the cash flows and discounting using the 3M curve. Multicurve With Collateral-Using the EUR 3M curve to generate the cash flows and discounting using the OIS curve. Multicurve Without Collateral-Using the EUR 3M curve to generate the cash flows and discounting using the 6M curve.
